Workbook

Sheet Louver_Calculator
AV3: Project:
AV4: Project Number:
AV5: Engineered by:
B6: LOUVER PERFORMANCE | AV6: Calculated by:
B7: Holyoake Louver Calculator | AV7: Comments:
B8: Version 8.1 | AV8: Date / Time: | BC8: Insertion Loss (dB) | BJ8: Transmission Loss (dB)
B9: Louver Number | C9: Louver Name / Description | D9: Louver Model | E9: Volume (L/S) | F9: Volume (M3S) | G9: Width (mm) | H9: Height (mm) | I9: Exhaust or Intake (E / I) | J9: Insect Mesh (Y / N) | K9: Overall Width | L9: Overall Height | M9: Internal Width | N9: Internal Width OHL-100WT | O9: Internal Height | P9: Internal Height OHL-100WT | Q9: Number of Blades Horizontal | R9: Number of Blades Vertical | S9: Number of Blades OHL-100WT | T9: Number of Mullions Horizontal | U9: Number of Mullions Vertical | V9: Number of Mullions OHL-100WT | W9: Number of Mullions Clips | X9: Mullions Clips Front OHL-100WT | Y9: Free Width Horizontal | Z9: Free Height Horizontal | AA9: Remaining Height Horizontal | AB9: Free Width Vertical | AC9: Free Height Vertical | AD9: Remaining Width Vertical | AE9: Free Width Horizontal | AF9: Free Height Horizontal | AG9: Free Width Vertical | AH9: Free Height Vertical | AI9: Free Width | AJ9: Free Height | AK9: Blade Weight Horizontal | AL9: Blade Weight Vertical | AM9: Mullion Weight Horizontal | AN9: Mullion Weight Vertical | AO9: Frame Weight | AP9: Single Door Weight | AQ9: Double Door Weight | AR9: Mesh Weight | AS9: Supplementary Weight | AT9: Effective Pressure Area | AU9: Free Area (%) | AV9: Face Velocity (m/s) | AW9: Free Area Velocity (m/s) | AX9: Pressure Drop (Pa) | AY9: Discharge Coefficient (CDv)* | AZ9: Estimated Weight (Kg)** | BA9: Wind Loading | BB9: Water Penetration Efficiency | BC9: 125 Hz | BD9: 250 Hz | BE9: 500 Hz | BF9: 1k Hz | BG9: 2k Hz | BH9: 4k Hz | BI9: 8k Hz | BJ9: 125 Hz | BK9: 250 Hz | BL9: 500 Hz | BM9: 1k Hz | BN9: 2k Hz | BO9: 4k Hz | BP9: 8k Hz
B11: 1 | F11: =IF($E11=0,"",$E11/1000) ->  | K11: =IF(OR($D11="",$G11=0,$H11=0),0,$G11-6) -> 0 | L11: =IF(OR($D11="",$G11=0,$H11=0),0,$H11-6) -> 0 | M11: =IF(OR($D11="",$G11=0,$H11=0),0,($K11-VLOOKUP($D11,LouverData,12,FALSE))) -> 0 | N11: =IF(OR($D11="",$G11=0,$H11=0),0,IF($D11="OHL-100WT",($K11-VLOOKUP("OHL-102",LouverData,12,FALSE)),0)) -> 0 | O11: =IF(OR($D11="",$G11=0,$H11=0),0,($L11-VLOOKUP($D11,LouverData,13,FALSE))) -> 0 | P11: =IF(OR($D11="",$G11=0,$H11=0),0,IF($D11="OHL-100WT",($L11-VLOOKUP("OHL-102",LouverData,13,FALSE)),0)) -> 0 | Q11: =IF(OR($D11="",$G11=0,$H11=0),0,IF(VLOOKUP($D11,LouverData,19,FALSE)=0,0,(IF(AND(NOT($D11="OVL-99"),NOT($D11="OHL-100WT")),(ROUNDUP($O11/VLOOKUP($D11,LouverData,19,FALSE),0)+1),0)))) -> 0 | R11: =IF(OR($D11="",$G11=0,$H11=0),0,IF(OR($D11="OVL-99",$D11="OHL-100WT"),(ROUNDUP($M11/VLOOKUP($D11,LouverData,19,FALSE),0)+1),0)) -> 0 | S11: =IF(OR($D11="",$G11=0,$H11=0),0,IF($D11="OHL-100WT",(ROUNDUP(P11/VLOOKUP("OHL-102",LouverData,19,FALSE),0)+1),0)) -> 0 | T11: =IF(OR($D11="",$G11=0,$H11=0),0,IF(VLOOKUP($D11,LouverData,22,FALSE)=0,0,(IF(AND(NOT($D11="OVL-99"),NOT($D11="OHL-100WT")),(IF($K11>500,ROUNDDOWN((($K11-100)/VLOOKUP($D11,LouverData,22,FALSE))+IF($D11="OHL-D",0,2),0),0)),0)))) -> 0 | U11: =IF(OR($D11="",$G11=0,$H11=0),0,IF(OR($D11="OVL-99",$D11="OHL-100WT"),(IF($L11>500,ROUNDDOWN((($L11-100)/VLOOKUP($D11,LouverData,22,FALSE))+2,0),0)),0)) -> 0 | V11: =IF(OR($D11="",$G11=0,$H11=0),0,IF($D11="OHL-100WT",(IF($K11>500,ROUNDDOWN((($K11-100)/VLOOKUP("OHL-102",LouverData,22,FALSE))+2,0),0)),0)) -> 0 | W11: =IF(OR($D11="",$G11=0,$H11=0),0,((IF($D11="OHL-D",2,0)+$T11)*$Q11)+($R11*$U11)) -> 0 | X11: =IF(OR($D11="",$G11=0,$H11=0),0,($S11*$V11)) -> 0 | Y11: =IF(OR($D11="",$G11=0,$H11=0),0,(IF(AND(NOT($D11="OVL-99"),NOT($D11="OHL-100WT")),($M11-$T11*VLOOKUP($D11,LouverData,23,FALSE)),0))) -> 0 | Z11: =IF(OR($D11="",$G11=0,$H11=0),0,(IF(AND(NOT($D11="OVL-99"),NOT($D11="OHL-100WT")),(($Q11-2)*VLOOKUP($D11,LouverData,20,FALSE)),0))) -> 0 | AA11: =IF(OR($D11="",$G11=0,$H11=0,$Z11=0),0,($O11/VLOOKUP($D11,LouverData,19,FALSE))-($Z11/VLOOKUP($D11,LouverData,20,FALSE))) -> 0 | AB11: =IF(OR($D11="",$G11=0,$H11=0),0,(IF(OR($D11="OVL-99",$D11="OHL-100WT"),(($R11-2)*VLOOKUP($D11,LouverData,20,FALSE)),0))) -> 0 | AC11: =IF(OR($D11="",$G11=0,$H11=0),0,(IF(OR($D11="OVL-99",$D11="OHL-100WT"),($O11-$U11*VLOOKUP($D11,LouverData,23,FALSE)),0))) -> 0 | AD11: =IF(OR($D11="",$G11=0,$H11=0,$AB11=0),0,($M11/VLOOKUP($D11,LouverData,19,FALSE))-($AB11/VLOOKUP($D11,LouverData,20,FALSE))) -> 0 | AE11: =$Y11 -> 0 | AF11: =IF(OR($D11="",$G11=0,$H11=0),0,(IF(($AA11*VLOOKUP($D11,LouverData,19,FALSE))>=VLOOKUP($D11,LouverData,20,FALSE),$Z11+VLOOKUP($D11,LouverData,20,FALSE),$Z11+$AA11*VLOOKUP($D11,LouverData,19,FALSE)))) -> 0 | AG11: =IF(OR($D11="",$G11=0,$H11=0),0,(IF(($AD11*VLOOKUP($D11,LouverData,19,FALSE))>=VLOOKUP($D11,LouverData,20,FALSE),$AB11+VLOOKUP($D11,LouverData,20,FALSE),$AB11+$AD11*VLOOKUP($D11,LouverData,19,FALSE)))) -> 0 | AH11: =$AC11 -> 0 | AI11: =IF(OR($D11="",$G11=0,$H11=0),0,(IF($AE11=0,$AG11,$AE11))) -> 0 | AJ11: =IF(OR($D11="",$G11=0,$H11=0),0,(IF($AF11=0,$AH11,$AF11))) -> 0 | AK11: =IF(OR($D11="",$G11=0,$H11=0),0,($M11*$Q11*VLOOKUP($D11,LouverData,18,FALSE))+($M11*$S11*VLOOKUP("OHL-102",LouverData,18,FALSE))) -> 0 | AL11: =IF(OR($D11="",$G11=0,$H11=0),0,($O11*$R11*VLOOKUP($D11,LouverData,18,FALSE))) -> 0 | AM11: =IF(OR($D11="",$G11=0,$H11=0),0,(($O11*$T11*VLOOKUP($D11,LouverData,21,FALSE))+($P11*$V11*VLOOKUP("OHL-45",LouverData,21,FALSE))+$W11*VLOOKUP($D11,LouverData,24,FALSE)+$X11*VLOOKUP("OHL-102",LouverData,24,FALSE))) -> 0 | AN11: =IF(OR($D11="",$G11=0,$H11=0),0,($M11*$U11*VLOOKUP($D11,LouverData,21,FALSE))) -> 0 | AO11: =IF(OR($D11="",$G11=0,$H11=0),0,IF(VLOOKUP($D11,LouverData,19,FALSE)=0,0,($M11*(VLOOKUP($D11,LouverData,15,FALSE)+VLOOKUP($D11,LouverData,16,FALSE))+2*$L11*VLOOKUP($D11,LouverData,17,FALSE)))) -> 0 | AP11: =IF(OR($D11="",$G11=0,$H11=0),0,IF($D11="OHL-DR SINGLE",2*($L11*VLOOKUP($D11,LouverData,15,FALSE) + $M11*VLOOKUP($D11,LouverData,17,FALSE))+2*($O11*VLOOKUP($D11,LouverData,16,FALSE) + ($M11-VLOOKUP($D11,LouverData,14,FALSE))*VLOOKUP($D11,LouverData,15,FALSE)),0)) -> 0 | AQ11: =IF(OR($D11="",$G11=0,$H11=0),0,IF($D11="OHL-DR DOUBLE",2*($L11*VLOOKUP($D11,LouverData,15,FALSE) + $M11*VLOOKUP($D11,LouverData,17,FALSE))+4*($O11*VLOOKUP($D11,LouverData,16,FALSE) + ($M11-2*VLOOKUP($D11,LouverData,14,FALSE))*VLOOKUP($D11,LouverData,15,FALSE)),0)) -> 0 | AR11: =IF(OR($D11="",$G11=0,$H11=0),0,(($M11*$O11*VLOOKUP($D11,LouverData,25,FALSE))/1000000)) -> 0 | AS11: =IF(OR($D11="",$G11=0,$H11=0),0,(VLOOKUP($D11,LouverData,26,FALSE))) -> 0 | AT11: =IF(OR($D11="",$G11=0,$H11=0),"",IF(VLOOKUP($D11,LouverData,20,FALSE)=0,"N/A",$AI11/1000*$AJ11/1000)) ->  | AU11: =IF(OR($D11="",$G11=0,$H11=0),"",IF(VLOOKUP($D11,LouverData,20,FALSE)=0,"N/A",($AI11*$AJ11)/($G11*$H11))) ->  | AV11: =IF(OR($D11="",$F11="",$G11=0,$H11=0),"",IF(VLOOKUP($D11,LouverData,20,FALSE)=0,"N/A",$F11/($G11*$H11/1000000))) ->  | AW11: =IF(OR($D11="",$F11="",$G11=0,$H11=0),"",IF(VLOOKUP($D11,LouverData,20,FALSE)=0,"N/A",$F11/($AI11*$AJ11/1000000))) ->  | AX11: =IF(OR($D11="",$F11="",$G11=0,$H11=0,$I11=0),"",IF(VLOOKUP($D11,LouverData,27,FALSE)=0,"N/A",IF($I11="E",$AW11^2*(VLOOKUP($D11,LouverData,27,FALSE))+$AW11*(VLOOKUP($D11,LouverData,28,FALSE))+(VLOOKUP($D11,LouverData,29,FALSE)),$AW11^2*(VLOOKUP($D11,LouverData,30,FALSE))+$AW11*(VLOOKUP($D11,LouverData,31,FALSE))+(VLOOKUP($D11,LouverData,32,FALSE))))) ->  | AY11: =IF(OR($D11="",$F11="",$G11=0,$H11=0,$I11=0),"",IF(VLOOKUP($D11,LouverData,27,FALSE)=0,"N/A",$AV11*(SQRT(1.19/(2*$AX11))))) ->  | AZ11: =IF(OR($D11="",$G11=0,$H11=0),"",$AK11+$AL11+$AM11+$AN11+$AO11+$AP11+$AQ11+$AR11+$AS11) ->  | BA11: =IF($D11="","",VLOOKUP($D11,LouverData,6,FALSE)) ->  | BB11: =IF($D11="","",VLOOKUP($D11,LouverData,10,FALSE)) ->  | BC11: =IF($D11="","",VLOOKUP($D11,LouverData,33,FALSE)) ->  | BD11: =IF($D11="","",VLOOKUP($D11,LouverData,34,FALSE)) ->  | BE11: =IF($D11="","",VLOOKUP($D11,LouverData,35,FALSE)) ->  | BF11: =IF($D11="","",VLOOKUP($D11,LouverData,36,FALSE)) ->  | BG11: =IF($D11="","",VLOOKUP($D11,LouverData,37,FALSE)) ->  | BH11: =IF($D11="","",VLOOKUP($D11,LouverData,38,FALSE)) ->  | BI11: =IF($D11="","",VLOOKUP($D11,LouverData,39,FALSE)) ->  | BJ11: =IF($D11="","",VLOOKUP($D11,LouverData,40,FALSE)) ->  | BK11: =IF($D11="","",VLOOKUP($D11,LouverData,41,FALSE)) ->  | BL11: =IF($D11="","",VLOOKUP($D11,LouverData,42,FALSE)) ->  | BM11: =IF($D11="","",VLOOKUP($D11,LouverData,43,FALSE)) ->  | BN11: =IF($D11="","",VLOOKUP($D11,LouverData,44,FALSE)) ->  | BO11: =IF($D11="","",VLOOKUP($D11,LouverData,45,FALSE)) ->  | BP11: =IF($D11="","",VLOOKUP($D11,LouverData,46,FALSE)) -> 
B12: 2 | K12: 0 | L12: 0 | M12: =IF(OR($D12="",$G12=0,$H12=0),0,($K12-VLOOKUP($D12,LouverData,12,FALSE))) -> 0 | N12: =IF(OR($D12="",$G12=0,$H12=0),0,IF($D12="OHL-100WT",($K12-VLOOKUP("OHL-102",LouverData,12,FALSE)),0)) -> 0 | O12: =IF(OR($D12="",$G12=0,$H12=0),0,($L12-VLOOKUP($D12,LouverData,13,FALSE))) -> 0 | P12: =IF(OR($D12="",$G12=0,$H12=0),0,IF($D12="OHL-100WT",($L12-VLOOKUP("OHL-102",LouverData,13,FALSE)),0)) -> 0 | Q12: =IF(OR($D12="",$G12=0,$H12=0),0,IF(VLOOKUP($D12,LouverData,19,FALSE)=0,0,(IF(AND(NOT($D12="OVL-99"),NOT($D12="OHL-100WT")),(ROUNDUP($O12/VLOOKUP($D12,LouverData,19,FALSE),0)+1),0)))) -> 0 | R12: =IF(OR($D12="",$G12=0,$H12=0),0,IF(OR($D12="OVL-99",$D12="OHL-100WT"),(ROUNDUP($M12/VLOOKUP($D12,LouverData,19,FALSE),0)+1),0)) -> 0 | S12: =IF(OR($D12="",$G12=0,$H12=0),0,IF($D12="OHL-100WT",(ROUNDUP(P12/VLOOKUP("OHL-102",LouverData,19,FALSE),0)+1),0)) -> 0 | T12: =IF(OR($D12="",$G12=0,$H12=0),0,IF(VLOOKUP($D12,LouverData,22,FALSE)=0,0,(IF(AND(NOT($D12="OVL-99"),NOT($D12="OHL-100WT")),(IF($K12>500,ROUNDDOWN((($K12-100)/VLOOKUP($D12,LouverData,22,FALSE))+IF($D12="OHL-D",0,2),0),0)),0)))) -> 0 | U12: =IF(OR($D12="",$G12=0,$H12=0),0,IF(OR($D12="OVL-99",$D12="OHL-100WT"),(IF($L12>500,ROUNDDOWN((($L12-100)/VLOOKUP($D12,LouverData,22,FALSE))+2,0),0)),0)) -> 0 | V12: =IF(OR($D12="",$G12=0,$H12=0),0,IF($D12="OHL-100WT",(IF($K12>500,ROUNDDOWN((($K12-100)/VLOOKUP("OHL-102",LouverData,22,FALSE))+2,0),0)),0)) -> 0 | W12: 0 | X12: 0 | Y12: =IF(OR($D12="",$G12=0,$H12=0),0,(IF(AND(NOT($D12="OVL-99"),NOT($D12="OHL-100WT")),($M12-$T12*VLOOKUP($D12,LouverData,23,FALSE)),0))) -> 0 | Z12: =IF(OR($D12="",$G12=0,$H12=0),0,(IF(AND(NOT($D12="OVL-99"),NOT($D12="OHL-100WT")),(($Q12-2)*VLOOKUP($D12,LouverData,20,FALSE)),0))) -> 0 | AA12: =IF(OR($D12="",$G12=0,$H12=0,$Z12=0),0,($O12/VLOOKUP($D12,LouverData,19,FALSE))-($Z12/VLOOKUP($D12,LouverData,20,FALSE))) -> 0 | AB12: =IF(OR($D12="",$G12=0,$H12=0),0,(IF(OR($D12="OVL-99",$D12="OHL-100WT"),(($R12-2)*VLOOKUP($D12,LouverData,20,FALSE)),0))) -> 0 | AC12: =IF(OR($D12="",$G12=0,$H12=0),0,(IF(OR($D12="OVL-99",$D12="OHL-100WT"),($O12-$U12*VLOOKUP($D12,LouverData,23,FALSE)),0))) -> 0 | AD12: =IF(OR($D12="",$G12=0,$H12=0,$AB12=0),0,($M12/VLOOKUP($D12,LouverData,19,FALSE))-($AB12/VLOOKUP($D12,LouverData,20,FALSE))) -> 0 | AE12: 0 | AF12: =IF(OR($D12="",$G12=0,$H12=0),0,(IF(($AA12*VLOOKUP($D12,LouverData,19,FALSE))>=VLOOKUP($D12,LouverData,20,FALSE),$Z12+VLOOKUP($D12,LouverData,20,FALSE),$Z12+$AA12*VLOOKUP($D12,LouverData,19,FALSE)))) -> 0 | AG12: =IF(OR($D12="",$G12=0,$H12=0),0,(IF(($AD12*VLOOKUP($D12,LouverData,19,FALSE))>=VLOOKUP($D12,LouverData,20,FALSE),$AB12+VLOOKUP($D12,LouverData,20,FALSE),$AB12+$AD12*VLOOKUP($D12,LouverData,19,FALSE)))) -> 0 | AH12: 0 | AI12: 0 | AJ12: 0 | AK12: =IF(OR($D12="",$G12=0,$H12=0),0,($M12*$Q12*VLOOKUP($D12,LouverData,18,FALSE))+($M12*$S12*VLOOKUP("OHL-102",LouverData,18,FALSE))) -> 0 | AL12: =IF(OR($D12="",$G12=0,$H12=0),0,($O12*$R12*VLOOKUP($D12,LouverData,18,FALSE))) -> 0 | AM12: =IF(OR($D12="",$G12=0,$H12=0),0,(($O12*$T12*VLOOKUP($D12,LouverData,21,FALSE))+($P12*$V12*VLOOKUP("OHL-45",LouverData,21,FALSE))+$W12*VLOOKUP($D12,LouverData,24,FALSE)+$X12*VLOOKUP("OHL-102",LouverData,24,FALSE))) -> 0 | AN12: =IF(OR($D12="",$G12=0,$H12=0),0,($M12*$U12*VLOOKUP($D12,LouverData,21,FALSE))) -> 0 | AO12: =IF(OR($D12="",$G12=0,$H12=0),0,IF(VLOOKUP($D12,LouverData,19,FALSE)=0,0,($M12*(VLOOKUP($D12,LouverData,15,FALSE)+VLOOKUP($D12,LouverData,16,FALSE))+2*$L12*VLOOKUP($D12,LouverData,17,FALSE)))) -> 0 | AP12: =IF(OR($D12="",$G12=0,$H12=0),0,IF($D12="OHL-DR SINGLE",2*($L12*VLOOKUP($D12,LouverData,15,FALSE) + $M12*VLOOKUP($D12,LouverData,17,FALSE))+2*($O12*VLOOKUP($D12,LouverData,16,FALSE) + ($M12-VLOOKUP($D12,LouverData,14,FALSE))*VLOOKUP($D12,LouverData,15,FALSE)),0)) -> 0 | AQ12: =IF(OR($D12="",$G12=0,$H12=0),0,IF($D12="OHL-DR DOUBLE",2*($L12*VLOOKUP($D12,LouverData,15,FALSE) + $M12*VLOOKUP($D12,LouverData,17,FALSE))+4*($O12*VLOOKUP($D12,LouverData,16,FALSE) + ($M12-2*VLOOKUP($D12,LouverData,14,FALSE))*VLOOKUP($D12,LouverData,15,FALSE)),0)) -> 0 | AR12: =IF(OR($D12="",$G12=0,$H12=0),0,(($M12*$O12*VLOOKUP($D12,LouverData,25,FALSE))/1000000)) -> 0 | AS12: =IF(OR($D12="",$G12=0,$H12=0),0,(VLOOKUP($D12,LouverData,26,FALSE))) -> 0 | AT12: =IF(OR($D12="",$G12=0,$H12=0),"",IF(VLOOKUP($D12,LouverData,20,FALSE)=0,"N/A",$AI12/1000*$AJ12/1000)) ->  | AU12: =IF(OR($D12="",$G12=0,$H12=0),"",IF(VLOOKUP($D12,LouverData,20,FALSE)=0,"N/A",($AI12*$AJ12)/($G12*$H12))) ->  | AV12: =IF(OR($D12="",$F12="",$G12=0,$H12=0),"",IF(VLOOKUP($D12,LouverData,20,FALSE)=0,"N/A",$F12/($G12*$H12/1000000))) ->  | AW12: =IF(OR($D12="",$F12="",$G12=0,$H12=0),"",IF(VLOOKUP($D12,LouverData,20,FALSE)=0,"N/A",$F12/($AI12*$AJ12/1000000))) ->  | AX12: =IF(OR($D12="",$F12="",$G12=0,$H12=0,$I12=0),"",IF(VLOOKUP($D12,LouverData,27,FALSE)=0,"N/A",IF($I12="E",$AW12^2*(VLOOKUP($D12,LouverData,27,FALSE))+$AW12*(VLOOKUP($D12,LouverData,28,FALSE))+(VLOOKUP($D12,LouverData,29,FALSE)),$AW12^2*(VLOOKUP($D12,LouverData,30,FALSE))+$AW12*(VLOOKUP($D12,LouverData,31,FALSE))+(VLOOKUP($D12,LouverData,32,FALSE))))) ->  | AY12: =IF(OR($D12="",$F12="",$G12=0,$H12=0,$I12=0),"",IF(VLOOKUP($D12,LouverData,27,FALSE)=0,"N/A",$AV12*(SQRT(1.19/(2*$AX12))))) ->  | BA12: =IF($D12="","",VLOOKUP($D12,LouverData,6,FALSE)) ->  | BB12: =IF($D12="","",VLOOKUP($D12,LouverData,10,FALSE)) ->  | BC12: =IF($D12="","",VLOOKUP($D12,LouverData,33,FALSE)) ->  | BD12: =IF($D12="","",VLOOKUP($D12,LouverData,34,FALSE)) ->  | BE12: =IF($D12="","",VLOOKUP($D12,LouverData,35,FALSE)) ->  | BF12: =IF($D12="","",VLOOKUP($D12,LouverData,36,FALSE)) ->  | BG12: =IF($D12="","",VLOOKUP($D12,LouverData,37,FALSE)) ->  | BH12: =IF($D12="","",VLOOKUP($D12,LouverData,38,FALSE)) ->  | BI12: =IF($D12="","",VLOOKUP($D12,LouverData,39,FALSE)) ->  | BJ12: =IF($D12="","",VLOOKUP($D12,LouverData,40,FALSE)) ->  | BK12: =IF($D12="","",VLOOKUP($D12,LouverData,41,FALSE)) ->  | BL12: =IF($D12="","",VLOOKUP($D12,LouverData,42,FALSE)) ->  | BM12: =IF($D12="","",VLOOKUP($D12,LouverData,43,FALSE)) ->  | BN12: =IF($D12="","",VLOOKUP($D12,LouverData,44,FALSE)) ->  | BO12: =IF($D12="","",VLOOKUP($D12,LouverData,45,FALSE)) ->  | BP12: =IF($D12="","",VLOOKUP($D12,LouverData,46,FALSE)) -> 
B13: 3 | F13: =IF($E13=0,"",$E13/1000) ->  | K13: =IF(OR($D13="",$G13=0,$H13=0),0,$G13-6) -> 0 | L13: =IF(OR($D13="",$G13=0,$H13=0),0,$H13-6) -> 0 | M13: =IF(OR($D13="",$G13=0,$H13=0),0,($K13-VLOOKUP($D13,LouverData,12,FALSE))) -> 0 | N13: =IF(OR($D13="",$G13=0,$H13=0),0,IF($D13="OHL-100WT",($K13-VLOOKUP("OHL-102",LouverData,12,FALSE)),0)) -> 0 | O13: =IF(OR($D13="",$G13=0,$H13=0),0,($L13-VLOOKUP($D13,LouverData,13,FALSE))) -> 0 | P13: =IF(OR($D13="",$G13=0,$H13=0),0,IF($D13="OHL-100WT",($L13-VLOOKUP("OHL-102",LouverData,13,FALSE)),0)) -> 0 | Q13: =IF(OR($D13="",$G13=0,$H13=0),0,IF(VLOOKUP($D13,LouverData,19,FALSE)=0,0,(IF(AND(NOT($D13="OVL-99"),NOT($D13="OHL-100WT")),(ROUNDUP($O13/VLOOKUP($D13,LouverData,19,FALSE),0)+1),0)))) -> 0 | R13: =IF(OR($D13="",$G13=0,$H13=0),0,IF(OR($D13="OVL-99",$D13="OHL-100WT"),(ROUNDUP($M13/VLOOKUP($D13,LouverData,19,FALSE),0)+1),0)) -> 0 | S13: =IF(OR($D13="",$G13=0,$H13=0),0,IF($D13="OHL-100WT",(ROUNDUP(P13/VLOOKUP("OHL-102",LouverData,19,FALSE),0)+1),0)) -> 0 | T13: =IF(OR($D13="",$G13=0,$H13=0),0,IF(VLOOKUP($D13,LouverData,22,FALSE)=0,0,(IF(AND(NOT($D13="OVL-99"),NOT($D13="OHL-100WT")),(IF($K13>500,ROUNDDOWN((($K13-100)/VLOOKUP($D13,LouverData,22,FALSE))+IF($D13="OHL-D",0,2),0),0)),0)))) -> 0 | U13: =IF(OR($D13="",$G13=0,$H13=0),0,IF(OR($D13="OVL-99",$D13="OHL-100WT"),(IF($L13>500,ROUNDDOWN((($L13-100)/VLOOKUP($D13,LouverData,22,FALSE))+2,0),0)),0)) -> 0 | V13: =IF(OR($D13="",$G13=0,$H13=0),0,IF($D13="OHL-100WT",(IF($K13>500,ROUNDDOWN((($K13-100)/VLOOKUP("OHL-102",LouverData,22,FALSE))+2,0),0)),0)) -> 0 | W13: =IF(OR($D13="",$G13=0,$H13=0),0,((IF($D13="OHL-D",2,0)+$T13)*$Q13)+($R13*$U13)) -> 0 | X13: =IF(OR($D13="",$G13=0,$H13=0),0,($S13*$V13)) -> 0 | Y13: =IF(OR($D13="",$G13=0,$H13=0),0,(IF(AND(NOT($D13="OVL-99"),NOT($D13="OHL-100WT")),($M13-$T13*VLOOKUP($D13,LouverData,23,FALSE)),0))) -> 0 | Z13: =IF(OR($D13="",$G13=0,$H13=0),0,(IF(AND(NOT($D13="OVL-99"),NOT($D13="OHL-100WT")),(($Q13-2)*VLOOKUP($D13,LouverData,20,FALSE)),0))) -> 0 | AA13: =IF(OR($D13="",$G13=0,$H13=0,$Z13=0),0,($O13/VLOOKUP($D13,LouverData,19,FALSE))-($Z13/VLOOKUP($D13,LouverData,20,FALSE))) -> 0 | AB13: =IF(OR($D13="",$G13=0,$H13=0),0,(IF(OR($D13="OVL-99",$D13="OHL-100WT"),(($R13-2)*VLOOKUP($D13,LouverData,20,FALSE)),0))) -> 0 | AC13: =IF(OR($D13="",$G13=0,$H13=0),0,(IF(OR($D13="OVL-99",$D13="OHL-100WT"),($O13-$U13*VLOOKUP($D13,LouverData,23,FALSE)),0))) -> 0 | AD13: =IF(OR($D13="",$G13=0,$H13=0,$AB13=0),0,($M13/VLOOKUP($D13,LouverData,19,FALSE))-($AB13/VLOOKUP($D13,LouverData,20,FALSE))) -> 0 | AE13: =$Y13 -> 0 | AF13: =IF(OR($D13="",$G13=0,$H13=0),0,(IF(($AA13*VLOOKUP($D13,LouverData,19,FALSE))>=VLOOKUP($D13,LouverData,20,FALSE),$Z13+VLOOKUP($D13,LouverData,20,FALSE),$Z13+$AA13*VLOOKUP($D13,LouverData,19,FALSE)))) -> 0 | AG13: =IF(OR($D13="",$G13=0,$H13=0),0,(IF(($AD13*VLOOKUP($D13,LouverData,19,FALSE))>=VLOOKUP($D13,LouverData,20,FALSE),$AB13+VLOOKUP($D13,LouverData,20,FALSE),$AB13+$AD13*VLOOKUP($D13,LouverData,19,FALSE)))) -> 0 | AH13: =$AC13 -> 0 | AI13: =IF(OR($D13="",$G13=0,$H13=0),0,(IF($AE13=0,$AG13,$AE13))) -> 0 | AJ13: =IF(OR($D13="",$G13=0,$H13=0),0,(IF($AF13=0,$AH13,$AF13))) -> 0 | AK13: =IF(OR($D13="",$G13=0,$H13=0),0,($M13*$Q13*VLOOKUP($D13,LouverData,18,FALSE))+($M13*$S13*VLOOKUP("OHL-102",LouverData,18,FALSE))) -> 0 | AL13: =IF(OR($D13="",$G13=0,$H13=0),0,($O13*$R13*VLOOKUP($D13,LouverData,18,FALSE))) -> 0 | AM13: =IF(OR($D13="",$G13=0,$H13=0),0,(($O13*$T13*VLOOKUP($D13,LouverData,21,FALSE))+($P13*$V13*VLOOKUP("OHL-45",LouverData,21,FALSE))+$W13*VLOOKUP($D13,LouverData,24,FALSE)+$X13*VLOOKUP("OHL-102",LouverData,24,FALSE))) -> 0 | AN13: =IF(OR($D13="",$G13=0,$H13=0),0,($M13*$U13*VLOOKUP($D13,LouverData,21,FALSE))) -> 0 | AO13: =IF(OR($D13="",$G13=0,$H13=0),0,IF(VLOOKUP($D13,LouverData,19,FALSE)=0,0,($M13*(VLOOKUP($D13,LouverData,15,FALSE)+VLOOKUP($D13,LouverData,16,FALSE))+2*$L13*VLOOKUP($D13,LouverData,17,FALSE)))) -> 0 | AP13: =IF(OR($D13="",$G13=0,$H13=0),0,IF($D13="OHL-DR SINGLE",2*($L13*VLOOKUP($D13,LouverData,15,FALSE) + $M13*VLOOKUP($D13,LouverData,17,FALSE))+2*($O13*VLOOKUP($D13,LouverData,16,FALSE) + ($M13-VLOOKUP($D13,LouverData,14,FALSE))*VLOOKUP($D13,LouverData,15,FALSE)),0)) -> 0 | AQ13: =IF(OR($D13="",$G13=0,$H13=0),0,IF($D13="OHL-DR DOUBLE",2*($L13*VLOOKUP($D13,LouverData,15,FALSE) + $M13*VLOOKUP($D13,LouverData,17,FALSE))+4*($O13*VLOOKUP($D13,LouverData,16,FALSE) + ($M13-2*VLOOKUP($D13,LouverData,14,FALSE))*VLOOKUP($D13,LouverData,15,FALSE)),0)) -> 0 | AR13: =IF(OR($D13="",$G13=0,$H13=0),0,(($M13*$O13*VLOOKUP($D13,LouverData,25,FALSE))/1000000)) -> 0 | AS13: =IF(OR($D13="",$G13=0,$H13=0),0,(VLOOKUP($D13,LouverData,26,FALSE))) -> 0 | AT13: =IF(OR($D13="",$G13=0,$H13=0),"",IF(VLOOKUP($D13,LouverData,20,FALSE)=0,"N/A",$AI13/1000*$AJ13/1000)) ->  | AU13: =IF(OR($D13="",$G13=0,$H13=0),"",IF(VLOOKUP($D13,LouverData,20,FALSE)=0,"N/A",($AI13*$AJ13)/($G13*$H13))) ->  | AV13: =IF(OR($D13="",$F13="",$G13=0,$H13=0),"",IF(VLOOKUP($D13,LouverData,20,FALSE)=0,"N/A",$F13/($G13*$H13/1000000))) ->  | AW13: =IF(OR($D13="",$F13="",$G13=0,$H13=0),"",IF(VLOOKUP($D13,LouverData,20,FALSE)=0,"N/A",$F13/($AI13*$AJ13/1000000))) ->  | AX13: =IF(OR($D13="",$F13="",$G13=0,$H13=0,$I13=0),"",IF(VLOOKUP($D13,LouverData,27,FALSE)=0,"N/A",IF($I13="E",$AW13^2*(VLOOKUP($D13,LouverData,27,FALSE))+$AW13*(VLOOKUP($D13,LouverData,28,FALSE))+(VLOOKUP($D13,LouverData,29,FALSE)),$AW13^2*(VLOOKUP($D13,LouverData,30,FALSE))+$AW13*(VLOOKUP($D13,LouverData,31,FALSE))+(VLOOKUP($D13,LouverData,32,FALSE))))) ->  | AY13: =IF(OR($D13="",$F13="",$G13=0,$H13=0,$I13=0),"",IF(VLOOKUP($D13,LouverData,27,FALSE)=0,"N/A",$AV13*(SQRT(1.19/(2*$AX13))))) ->  | AZ13: =IF(OR($D13="",$G13=0,$H13=0),"",$AK13+$AL13+$AM13+$AN13+$AO13+$AP13+$AQ13+$AR13+$AS13) ->  | BA13: =IF($D13="","",VLOOKUP($D13,LouverData,6,FALSE)) ->  | BB13: =IF($D13="","",VLOOKUP($D13,LouverData,10,FALSE)) ->  | BC13: =IF($D13="","",VLOOKUP($D13,LouverData,33,FALSE)) ->  | BD13: =IF($D13="","",VLOOKUP($D13,LouverData,34,FALSE)) ->  | BE13: =IF($D13="","",VLOOKUP($D13,LouverData,35,FALSE)) ->  | BF13: =IF($D13="","",VLOOKUP($D13,LouverData,36,FALSE)) ->  | BG13: =IF($D13="","",VLOOKUP($D13,LouverData,37,FALSE)) ->  | BH13: =IF($D13="","",VLOOKUP($D13,LouverData,38,FALSE)) ->  | BI13: =IF($D13="","",VLOOKUP($D13,LouverData,39,FALSE)) ->  | BJ13: =IF($D13="","",VLOOKUP($D13,LouverData,40,FALSE)) ->  | BK13: =IF($D13="","",VLOOKUP($D13,LouverData,41,FALSE)) ->  | BL13: =IF($D13="","",VLOOKUP($D13,LouverData,42,FALSE)) ->  | BM13: =IF($D13="","",VLOOKUP($D13,LouverData,43,FALSE)) ->  | BN13: =IF($D13="","",VLOOKUP($D13,LouverData,44,FALSE)) ->  | BO13: =IF($D13="","",VLOOKUP($D13,LouverData,45,FALSE)) ->  | BP13: =IF($D13="","",VLOOKUP($D13,LouverData,46,FALSE)) -> 
B14: 4 | F14: =IF($E14=0,"",$E14/1000) ->  | K14: =IF(OR($D14="",$G14=0,$H14=0),0,$G14-6) -> 0 | L14: =IF(OR($D14="",$G14=0,$H14=0),0,$H14-6) -> 0 | M14: =IF(OR($D14="",$G14=0,$H14=0),0,($K14-VLOOKUP($D14,LouverData,12,FALSE))) -> 0 | N14: =IF(OR($D14="",$G14=0,$H14=0),0,IF($D14="OHL-100WT",($K14-VLOOKUP("OHL-102",LouverData,12,FALSE)),0)) -> 0 | O14: =IF(OR($D14="",$G14=0,$H14=0),0,($L14-VLOOKUP($D14,LouverData,13,FALSE))) -> 0 | P14: =IF(OR($D14="",$G14=0,$H14=0),0,IF($D14="OHL-100WT",($L14-VLOOKUP("OHL-102",LouverData,13,FALSE)),0)) -> 0 | Q14: =IF(OR($D14="",$G14=0,$H14=0),0,IF(VLOOKUP($D14,LouverData,19,FALSE)=0,0,(IF(AND(NOT($D14="OVL-99"),NOT($D14="OHL-100WT")),(ROUNDUP($O14/VLOOKUP($D14,LouverData,19,FALSE),0)+1),0)))) -> 0 | R14: =IF(OR($D14="",$G14=0,$H14=0),0,IF(OR($D14="OVL-99",$D14="OHL-100WT"),(ROUNDUP($M14/VLOOKUP($D14,LouverData,19,FALSE),0)+1),0)) -> 0 | S14: =IF(OR($D14="",$G14=0,$H14=0),0,IF($D14="OHL-100WT",(ROUNDUP(P14/VLOOKUP("OHL-102",LouverData,19,FALSE),0)+1),0)) -> 0 | T14: =IF(OR($D14="",$G14=0,$H14=0),0,IF(VLOOKUP($D14,LouverData,22,FALSE)=0,0,(IF(AND(NOT($D14="OVL-99"),NOT($D14="OHL-100WT")),(IF($K14>500,ROUNDDOWN((($K14-100)/VLOOKUP($D14,LouverData,22,FALSE))+IF($D14="OHL-D",0,2),0),0)),0)))) -> 0 | U14: =IF(OR($D14="",$G14=0,$H14=0),0,IF(OR($D14="OVL-99",$D14="OHL-100WT"),(IF($L14>500,ROUNDDOWN((($L14-100)/VLOOKUP($D14,LouverData,22,FALSE))+2,0),0)),0)) -> 0 | V14: =IF(OR($D14="",$G14=0,$H14=0),0,IF($D14="OHL-100WT",(IF($K14>500,ROUNDDOWN((($K14-100)/VLOOKUP("OHL-102",LouverData,22,FALSE))+2,0),0)),0)) -> 0 | W14: =IF(OR($D14="",$G14=0,$H14=0),0,((IF($D14="OHL-D",2,0)+$T14)*$Q14)+($R14*$U14)) -> 0 | X14: =IF(OR($D14="",$G14=0,$H14=0),0,($S14*$V14)) -> 0 | Y14: =IF(OR($D14="",$G14=0,$H14=0),0,(IF(AND(NOT($D14="OVL-99"),NOT($D14="OHL-100WT")),($M14-$T14*VLOOKUP($D14,LouverData,23,FALSE)),0))) -> 0 | Z14: =IF(OR($D14="",$G14=0,$H14=0),0,(IF(AND(NOT($D14="OVL-99"),NOT($D14="OHL-100WT")),(($Q14-2)*VLOOKUP($D14,LouverData,20,FALSE)),0))) -> 0 | AA14: =IF(OR($D14="",$G14=0,$H14=0,$Z14=0),0,($O14/VLOOKUP($D14,LouverData,19,FALSE))-($Z14/VLOOKUP($D14,LouverData,20,FALSE))) -> 0 | AB14: =IF(OR($D14="",$G14=0,$H14=0),0,(IF(OR($D14="OVL-99",$D14="OHL-100WT"),(($R14-2)*VLOOKUP($D14,LouverData,20,FALSE)),0))) -> 0 | AC14: =IF(OR($D14="",$G14=0,$H14=0),0,(IF(OR($D14="OVL-99",$D14="OHL-100WT"),($O14-$U14*VLOOKUP($D14,LouverData,23,FALSE)),0))) -> 0 | AD14: =IF(OR($D14="",$G14=0,$H14=0,$AB14=0),0,($M14/VLOOKUP($D14,LouverData,19,FALSE))-($AB14/VLOOKUP($D14,LouverData,20,FALSE))) -> 0 | AE14: =$Y14 -> 0 | AF14: =IF(OR($D14="",$G14=0,$H14=0),0,(IF(($AA14*VLOOKUP($D14,LouverData,19,FALSE))>=VLOOKUP($D14,LouverData,20,FALSE),$Z14+VLOOKUP($D14,LouverData,20,FALSE),$Z14+$AA14*VLOOKUP($D14,LouverData,19,FALSE)))) -> 0 | AG14: =IF(OR($D14="",$G14=0,$H14=0),0,(IF(($AD14*VLOOKUP($D14,LouverData,19,FALSE))>=VLOOKUP($D14,LouverData,20,FALSE),$AB14+VLOOKUP($D14,LouverData,20,FALSE),$AB14+$AD14*VLOOKUP($D14,LouverData,19,FALSE)))) -> 0 | AH14: =$AC14 -> 0 | AI14: =IF(OR($D14="",$G14=0,$H14=0),0,(IF($AE14=0,$AG14,$AE14))) -> 0 | AJ14: =IF(OR($D14="",$G14=0,$H14=0),0,(IF($AF14=0,$AH14,$AF14))) -> 0 | AK14: =IF(OR($D14="",$G14=0,$H14=0),0,($M14*$Q14*VLOOKUP($D14,LouverData,18,FALSE))+($M14*$S14*VLOOKUP("OHL-102",LouverData,18,FALSE))) -> 0 | AL14: =IF(OR($D14="",$G14=0,$H14=0),0,($O14*$R14*VLOOKUP($D14,LouverData,18,FALSE))) -> 0 | AM14: =IF(OR($D14="",$G14=0,$H14=0),0,(($O14*$T14*VLOOKUP($D14,LouverData,21,FALSE))+($P14*$V14*VLOOKUP("OHL-45",LouverData,21,FALSE))+$W14*VLOOKUP($D14,LouverData,24,FALSE)+$X14*VLOOKUP("OHL-102",LouverData,24,FALSE))) -> 0 | AN14: =IF(OR($D14="",$G14=0,$H14=0),0,($M14*$U14*VLOOKUP($D14,LouverData,21,FALSE))) -> 0 | AO14: =IF(OR($D14="",$G14=0,$H14=0),0,IF(VLOOKUP($D14,LouverData,19,FALSE)=0,0,($M14*(VLOOKUP($D14,LouverData,15,FALSE)+VLOOKUP($D14,LouverData,16,FALSE))+2*$L14*VLOOKUP($D14,LouverData,17,FALSE)))) -> 0 | AP14: =IF(OR($D14="",$G14=0,$H14=0),0,IF($D14="OHL-DR SINGLE",2*($L14*VLOOKUP($D14,LouverData,15,FALSE) + $M14*VLOOKUP($D14,LouverData,17,FALSE))+2*($O14*VLOOKUP($D14,LouverData,16,FALSE) + ($M14-VLOOKUP($D14,LouverData,14,FALSE))*VLOOKUP($D14,LouverData,15,FALSE)),0)) -> 0 | AQ14: =IF(OR($D14="",$G14=0,$H14=0),0,IF($D14="OHL-DR DOUBLE",2*($L14*VLOOKUP($D14,LouverData,15,FALSE) + $M14*VLOOKUP($D14,LouverData,17,FALSE))+4*($O14*VLOOKUP($D14,LouverData,16,FALSE) + ($M14-2*VLOOKUP($D14,LouverData,14,FALSE))*VLOOKUP($D14,LouverData,15,FALSE)),0)) -> 0 | AR14: =IF(OR($D14="",$G14=0,$H14=0),0,(($M14*$O14*VLOOKUP($D14,LouverData,25,FALSE))/1000000)) -> 0 | AS14: =IF(OR($D14="",$G14=0,$H14=0),0,(VLOOKUP($D14,LouverData,26,FALSE))) -> 0 | AT14: =IF(OR($D14="",$G14=0,$H14=0),"",IF(VLOOKUP($D14,LouverData,20,FALSE)=0,"N/A",$AI14/1000*$AJ14/1000)) ->  | AU14: =IF(OR($D14="",$G14=0,$H14=0),"",IF(VLOOKUP($D14,LouverData,20,FALSE)=0,"N/A",($AI14*$AJ14)/($G14*$H14))) ->  | AV14: =IF(OR($D14="",$F14="",$G14=0,$H14=0),"",IF(VLOOKUP($D14,LouverData,20,FALSE)=0,"N/A",$F14/($G14*$H14/1000000))) ->  | AW14: =IF(OR($D14="",$F14="",$G14=0,$H14=0),"",IF(VLOOKUP($D14,LouverData,20,FALSE)=0,"N/A",$F14/($AI14*$AJ14/1000000))) ->  | AX14: =IF(OR($D14="",$F14="",$G14=0,$H14=0,$I14=0),"",IF(VLOOKUP($D14,LouverData,27,FALSE)=0,"N/A",IF($I14="E",$AW14^2*(VLOOKUP($D14,LouverData,27,FALSE))+$AW14*(VLOOKUP($D14,LouverData,28,FALSE))+(VLOOKUP($D14,LouverData,29,FALSE)),$AW14^2*(VLOOKUP($D14,LouverData,30,FALSE))+$AW14*(VLOOKUP($D14,LouverData,31,FALSE))+(VLOOKUP($D14,LouverData,32,FALSE))))) ->  | AY14: =IF(OR($D14="",$F14="",$G14=0,$H14=0,$I14=0),"",IF(VLOOKUP($D14,LouverData,27,FALSE)=0,"N/A",$AV14*(SQRT(1.19/(2*$AX14))))) ->  | AZ14: =IF(OR($D14="",$G14=0,$H14=0),"",$AK14+$AL14+$AM14+$AN14+$AO14+$AP14+$AQ14+$AR14+$AS14) ->  | BA14: =IF($D14="","",VLOOKUP($D14,LouverData,6,FALSE)) ->  | BB14: =IF($D14="","",VLOOKUP($D14,LouverData,10,FALSE)) ->  | BC14: =IF($D14="","",VLOOKUP($D14,LouverData,33,FALSE)) ->  | BD14: =IF($D14="","",VLOOKUP($D14,LouverData,34,FALSE)) ->  | BE14: =IF($D14="","",VLOOKUP($D14,LouverData,35,FALSE)) ->  | BF14: =IF($D14="","",VLOOKUP($D14,LouverData,36,FALSE)) ->  | BG14: =IF($D14="","",VLOOKUP($D14,LouverData,37,FALSE)) ->  | BH14: =IF($D14="","",VLOOKUP($D14,LouverData,38,FALSE)) ->  | BI14: =IF($D14="","",VLOOKUP($D14,LouverData,39,FALSE)) ->  | BJ14: =IF($D14="","",VLOOKUP($D14,LouverData,40,FALSE)) ->  | BK14: =IF($D14="","",VLOOKUP($D14,LouverData,41,FALSE)) ->  | BL14: =IF($D14="","",VLOOKUP($D14,LouverData,42,FALSE)) ->  | BM14: =IF($D14="","",VLOOKUP($D14,LouverData,43,FALSE)) ->  | BN14: =IF($D14="","",VLOOKUP($D14,LouverData,44,FALSE)) ->  | BO14: =IF($D14="","",VLOOKUP($D14,LouverData,45,FALSE)) ->  | BP14: =IF($D14="","",VLOOKUP($D14,LouverData,46,FALSE)) -> 
B15: 5 | K15: 0 | L15: 0 | M15: =IF(OR($D15="",$G15=0,$H15=0),0,($K15-VLOOKUP($D15,LouverData,12,FALSE))) -> 0 | N15: =IF(OR($D15="",$G15=0,$H15=0),0,IF($D15="OHL-100WT",($K15-VLOOKUP("OHL-102",LouverData,12,FALSE)),0)) -> 0 | O15: =IF(OR($D15="",$G15=0,$H15=0),0,($L15-VLOOKUP($D15,LouverData,13,FALSE))) -> 0 | P15: =IF(OR($D15="",$G15=0,$H15=0),0,IF($D15="OHL-100WT",($L15-VLOOKUP("OHL-102",LouverData,13,FALSE)),0)) -> 0 | Q15: =IF(OR($D15="",$G15=0,$H15=0),0,IF(VLOOKUP($D15,LouverData,19,FALSE)=0,0,(IF(AND(NOT($D15="OVL-99"),NOT($D15="OHL-100WT")),(ROUNDUP($O15/VLOOKUP($D15,LouverData,19,FALSE),0)+1),0)))) -> 0 | R15: =IF(OR($D15="",$G15=0,$H15=0),0,IF(OR($D15="OVL-99",$D15="OHL-100WT"),(ROUNDUP($M15/VLOOKUP($D15,LouverData,19,FALSE),0)+1),0)) -> 0 | S15: =IF(OR($D15="",$G15=0,$H15=0),0,IF($D15="OHL-100WT",(ROUNDUP(P15/VLOOKUP("OHL-102",LouverData,19,FALSE),0)+1),0)) -> 0 | T15: =IF(OR($D15="",$G15=0,$H15=0),0,IF(VLOOKUP($D15,LouverData,22,FALSE)=0,0,(IF(AND(NOT($D15="OVL-99"),NOT($D15="OHL-100WT")),(IF($K15>500,ROUNDDOWN((($K15-100)/VLOOKUP($D15,LouverData,22,FALSE))+IF($D15="OHL-D",0,2),0),0)),0)))) -> 0 | U15: =IF(OR($D15="",$G15=0,$H15=0),0,IF(OR($D15="OVL-99",$D15="OHL-100WT"),(IF($L15>500,ROUNDDOWN((($L15-100)/VLOOKUP($D15,LouverData,22,FALSE))+2,0),0)),0)) -> 0 | V15: =IF(OR($D15="",$G15=0,$H15=0),0,IF($D15="OHL-100WT",(IF($K15>500,ROUNDDOWN((($K15-100)/VLOOKUP("OHL-102",LouverData,22,FALSE))+2,0),0)),0)) -> 0 | W15: 0 | X15: 0 | Y15: =IF(OR($D15="",$G15=0,$H15=0),0,(IF(AND(NOT($D15="OVL-99"),NOT($D15="OHL-100WT")),($M15-$T15*VLOOKUP($D15,LouverData,23,FALSE)),0))) -> 0 | Z15: =IF(OR($D15="",$G15=0,$H15=0),0,(IF(AND(NOT($D15="OVL-99"),NOT($D15="OHL-100WT")),(($Q15-2)*VLOOKUP($D15,LouverData,20,FALSE)),0))) -> 0 | AA15: =IF(OR($D15="",$G15=0,$H15=0,$Z15=0),0,($O15/VLOOKUP($D15,LouverData,19,FALSE))-($Z15/VLOOKUP($D15,LouverData,20,FALSE))) -> 0 | AB15: =IF(OR($D15="",$G15=0,$H15=0),0,(IF(OR($D15="OVL-99",$D15="OHL-100WT"),(($R15-2)*VLOOKUP($D15,LouverData,20,FALSE)),0))) -> 0 | AC15: =IF(OR($D15="",$G15=0,$H15=0),0,(IF(OR($D15="OVL-99",$D15="OHL-100WT"),($O15-$U15*VLOOKUP($D15,LouverData,23,FALSE)),0))) -> 0 | AD15: =IF(OR($D15="",$G15=0,$H15=0,$AB15=0),0,($M15/VLOOKUP($D15,LouverData,19,FALSE))-($AB15/VLOOKUP($D15,LouverData,20,FALSE))) -> 0 | AE15: 0 | AF15: =IF(OR($D15="",$G15=0,$H15=0),0,(IF(($AA15*VLOOKUP($D15,LouverData,19,FALSE))>=VLOOKUP($D15,LouverData,20,FALSE),$Z15+VLOOKUP($D15,LouverData,20,FALSE),$Z15+$AA15*VLOOKUP($D15,LouverData,19,FALSE)))) -> 0 | AG15: =IF(OR($D15="",$G15=0,$H15=0),0,(IF(($AD15*VLOOKUP($D15,LouverData,19,FALSE))>=VLOOKUP($D15,LouverData,20,FALSE),$AB15+VLOOKUP($D15,LouverData,20,FALSE),$AB15+$AD15*VLOOKUP($D15,LouverData,19,FALSE)))) -> 0 | AH15: 0 | AI15: 0 | AJ15: 0 | AK15: =IF(OR($D15="",$G15=0,$H15=0),0,($M15*$Q15*VLOOKUP($D15,LouverData,18,FALSE))+($M15*$S15*VLOOKUP("OHL-102",LouverData,18,FALSE))) -> 0 | AL15: =IF(OR($D15="",$G15=0,$H15=0),0,($O15*$R15*VLOOKUP($D15,LouverData,18,FALSE))) -> 0 | AM15: =IF(OR($D15="",$G15=0,$H15=0),0,(($O15*$T15*VLOOKUP($D15,LouverData,21,FALSE))+($P15*$V15*VLOOKUP("OHL-45",LouverData,21,FALSE))+$W15*VLOOKUP($D15,LouverData,24,FALSE)+$X15*VLOOKUP("OHL-102",LouverData,24,FALSE))) -> 0 | AN15: =IF(OR($D15="",$G15=0,$H15=0),0,($M15*$U15*VLOOKUP($D15,LouverData,21,FALSE))) -> 0 | AO15: =IF(OR($D15="",$G15=0,$H15=0),0,IF(VLOOKUP($D15,LouverData,19,FALSE)=0,0,($M15*(VLOOKUP($D15,LouverData,15,FALSE)+VLOOKUP($D15,LouverData,16,FALSE))+2*$L15*VLOOKUP($D15,LouverData,17,FALSE)))) -> 0 | AP15: =IF(OR($D15="",$G15=0,$H15=0),0,IF($D15="OHL-DR SINGLE",2*($L15*VLOOKUP($D15,LouverData,15,FALSE) + $M15*VLOOKUP($D15,LouverData,17,FALSE))+2*($O15*VLOOKUP($D15,LouverData,16,FALSE) + ($M15-VLOOKUP($D15,LouverData,14,FALSE))*VLOOKUP($D15,LouverData,15,FALSE)),0)) -> 0 | AQ15: =IF(OR($D15="",$G15=0,$H15=0),0,IF($D15="OHL-DR DOUBLE",2*($L15*VLOOKUP($D15,LouverData,15,FALSE) + $M15*VLOOKUP($D15,LouverData,17,FALSE))+4*($O15*VLOOKUP($D15,LouverData,16,FALSE) + ($M15-2*VLOOKUP($D15,LouverData,14,FALSE))*VLOOKUP($D15,LouverData,15,FALSE)),0)) -> 0 | AR15: =IF(OR($D15="",$G15=0,$H15=0),0,(($M15*$O15*VLOOKUP($D15,LouverData,25,FALSE))/1000000)) -> 0 | AS15: =IF(OR($D15="",$G15=0,$H15=0),0,(VLOOKUP($D15,LouverData,26,FALSE))) -> 0 | AT15: =IF(OR($D15="",$G15=0,$H15=0),"",IF(VLOOKUP($D15,LouverData,20,FALSE)=0,"N/A",$AI15/1000*$AJ15/1000)) ->  | AU15: =IF(OR($D15="",$G15=0,$H15=0),"",IF(VLOOKUP($D15,LouverData,20,FALSE)=0,"N/A",($AI15*$AJ15)/($G15*$H15))) ->  | AV15: =IF(OR($D15="",$F15="",$G15=0,$H15=0),"",IF(VLOOKUP($D15,LouverData,20,FALSE)=0,"N/A",$F15/($G15*$H15/1000000))) ->  | AW15: =IF(OR($D15="",$F15="",$G15=0,$H15=0),"",IF(VLOOKUP($D15,LouverData,20,FALSE)=0,"N/A",$F15/($AI15*$AJ15/1000000))) ->  | AX15: =IF(OR($D15="",$F15="",$G15=0,$H15=0,$I15=0),"",IF(VLOOKUP($D15,LouverData,27,FALSE)=0,"N/A",IF($I15="E",$AW15^2*(VLOOKUP($D15,LouverData,27,FALSE))+$AW15*(VLOOKUP($D15,LouverData,28,FALSE))+(VLOOKUP($D15,LouverData,29,FALSE)),$AW15^2*(VLOOKUP($D15,LouverData,30,FALSE))+$AW15*(VLOOKUP($D15,LouverData,31,FALSE))+(VLOOKUP($D15,LouverData,32,FALSE))))) ->  | AY15: =IF(OR($D15="",$F15="",$G15=0,$H15=0,$I15=0),"",IF(VLOOKUP($D15,LouverData,27,FALSE)=0,"N/A",$AV15*(SQRT(1.19/(2*$AX15))))) ->  | BA15: =IF($D15="","",VLOOKUP($D15,LouverData,6,FALSE)) ->  | BB15: =IF($D15="","",VLOOKUP($D15,LouverData,10,FALSE)) ->  | BC15: =IF($D15="","",VLOOKUP($D15,LouverData,33,FALSE)) ->  | BD15: =IF($D15="","",VLOOKUP($D15,LouverData,34,FALSE)) ->  | BE15: =IF($D15="","",VLOOKUP($D15,LouverData,35,FALSE)) ->  | BF15: =IF($D15="","",VLOOKUP($D15,LouverData,36,FALSE)) ->  | BG15: =IF($D15="","",VLOOKUP($D15,LouverData,37,FALSE)) ->  | BH15: =IF($D15="","",VLOOKUP($D15,LouverData,38,FALSE)) ->  | BI15: =IF($D15="","",VLOOKUP($D15,LouverData,39,FALSE)) ->  | BJ15: =IF($D15="","",VLOOKUP($D15,LouverData,40,FALSE)) ->  | BK15: =IF($D15="","",VLOOKUP($D15,LouverData,41,FALSE)) ->  | BL15: =IF($D15="","",VLOOKUP($D15,LouverData,42,FALSE)) ->  | BM15: =IF($D15="","",VLOOKUP($D15,LouverData,43,FALSE)) ->  | BN15: =IF($D15="","",VLOOKUP($D15,LouverData,44,FALSE)) ->  | BO15: =IF($D15="","",VLOOKUP($D15,LouverData,45,FALSE)) ->  | BP15: =IF($D15="","",VLOOKUP($D15,LouverData,46,FALSE)) -> 
B16: 6 | K16: 0 | L16: 0 | M16: =IF(OR($D16="",$G16=0,$H16=0),0,($K16-VLOOKUP($D16,LouverData,12,FALSE))) -> 0 | N16: =IF(OR($D16="",$G16=0,$H16=0),0,IF($D16="OHL-100WT",($K16-VLOOKUP("OHL-102",LouverData,12,FALSE)),0)) -> 0 | O16: =IF(OR($D16="",$G16=0,$H16=0),0,($L16-VLOOKUP($D16,LouverData,13,FALSE))) -> 0 | P16: =IF(OR($D16="",$G16=0,$H16=0),0,IF($D16="OHL-100WT",($L16-VLOOKUP("OHL-102",LouverData,13,FALSE)),0)) -> 0 | Q16: =IF(OR($D16="",$G16=0,$H16=0),0,IF(VLOOKUP($D16,LouverData,19,FALSE)=0,0,(IF(AND(NOT($D16="OVL-99"),NOT($D16="OHL-100WT")),(ROUNDUP($O16/VLOOKUP($D16,LouverData,19,FALSE),0)+1),0)))) -> 0 | R16: =IF(OR($D16="",$G16=0,$H16=0),0,IF(OR($D16="OVL-99",$D16="OHL-100WT"),(ROUNDUP($M16/VLOOKUP($D16,LouverData,19,FALSE),0)+1),0)) -> 0 | S16: =IF(OR($D16="",$G16=0,$H16=0),0,IF($D16="OHL-100WT",(ROUNDUP(P16/VLOOKUP("OHL-102",LouverData,19,FALSE),0)+1),0)) -> 0 | T16: =IF(OR($D16="",$G16=0,$H16=0),0,IF(VLOOKUP($D16,LouverData,22,FALSE)=0,0,(IF(AND(NOT($D16="OVL-99"),NOT($D16="OHL-100WT")),(IF($K16>500,ROUNDDOWN((($K16-100)/VLOOKUP($D16,LouverData,22,FALSE))+IF($D16="OHL-D",0,2),0),0)),0)))) -> 0 | U16: =IF(OR($D16="",$G16=0,$H16=0),0,IF(OR($D16="OVL-99",$D16="OHL-100WT"),(IF($L16>500,ROUNDDOWN((($L16-100)/VLOOKUP($D16,LouverData,22,FALSE))+2,0),0)),0)) -> 0 | V16: =IF(OR($D16="",$G16=0,$H16=0),0,IF($D16="OHL-100WT",(IF($K16>500,ROUNDDOWN((($K16-100)/VLOOKUP("OHL-102",LouverData,22,FALSE))+2,0),0)),0)) -> 0 | W16: 0 | X16: 0 | Y16: =IF(OR($D16="",$G16=0,$H16=0),0,(IF(AND(NOT($D16="OVL-99"),NOT($D16="OHL-100WT")),($M16-$T16*VLOOKUP($D16,LouverData,23,FALSE)),0))) -> 0 | Z16: =IF(OR($D16="",$G16=0,$H16=0),0,(IF(AND(NOT($D16="OVL-99"),NOT($D16="OHL-100WT")),(($Q16-2)*VLOOKUP($D16,LouverData,20,FALSE)),0))) -> 0 | AA16: =IF(OR($D16="",$G16=0,$H16=0,$Z16=0),0,($O16/VLOOKUP($D16,LouverData,19,FALSE))-($Z16/VLOOKUP($D16,LouverData,20,FALSE))) -> 0 | AB16: =IF(OR($D16="",$G16=0,$H16=0),0,(IF(OR($D16="OVL-99",$D16="OHL-100WT"),(($R16-2)*VLOOKUP($D16,LouverData,20,FALSE)),0))) -> 0 | AC16: =IF(OR($D16="",$G16=0,$H16=0),0,(IF(OR($D16="OVL-99",$D16="OHL-100WT"),($O16-$U16*VLOOKUP($D16,LouverData,23,FALSE)),0))) -> 0 | AD16: =IF(OR($D16="",$G16=0,$H16=0,$AB16=0),0,($M16/VLOOKUP($D16,LouverData,19,FALSE))-($AB16/VLOOKUP($D16,LouverData,20,FALSE))) -> 0 | AE16: 0 | AF16: =IF(OR($D16="",$G16=0,$H16=0),0,(IF(($AA16*VLOOKUP($D16,LouverData,19,FALSE))>=VLOOKUP($D16,LouverData,20,FALSE),$Z16+VLOOKUP($D16,LouverData,20,FALSE),$Z16+$AA16*VLOOKUP($D16,LouverData,19,FALSE)))) -> 0 | AG16: =IF(OR($D16="",$G16=0,$H16=0),0,(IF(($AD16*VLOOKUP($D16,LouverData,19,FALSE))>=VLOOKUP($D16,LouverData,20,FALSE),$AB16+VLOOKUP($D16,LouverData,20,FALSE),$AB16+$AD16*VLOOKUP($D16,LouverData,19,FALSE)))) -> 0 | AH16: 0 | AI16: 0 | AJ16: 0 | AK16: =IF(OR($D16="",$G16=0,$H16=0),0,($M16*$Q16*VLOOKUP($D16,LouverData,18,FALSE))+($M16*$S16*VLOOKUP("OHL-102",LouverData,18,FALSE))) -> 0 | AL16: =IF(OR($D16="",$G16=0,$H16=0),0,($O16*$R16*VLOOKUP($D16,LouverData,18,FALSE))) -> 0 | AM16: =IF(OR($D16="",$G16=0,$H16=0),0,(($O16*$T16*VLOOKUP($D16,LouverData,21,FALSE))+($P16*$V16*VLOOKUP("OHL-45",LouverData,21,FALSE))+$W16*VLOOKUP($D16,LouverData,24,FALSE)+$X16*VLOOKUP("OHL-102",LouverData,24,FALSE))) -> 0 | AN16: =IF(OR($D16="",$G16=0,$H16=0),0,($M16*$U16*VLOOKUP($D16,LouverData,21,FALSE))) -> 0 | AO16: =IF(OR($D16="",$G16=0,$H16=0),0,IF(VLOOKUP($D16,LouverData,19,FALSE)=0,0,($M16*(VLOOKUP($D16,LouverData,15,FALSE)+VLOOKUP($D16,LouverData,16,FALSE))+2*$L16*VLOOKUP($D16,LouverData,17,FALSE)))) -> 0 | AP16: =IF(OR($D16="",$G16=0,$H16=0),0,IF($D16="OHL-DR SINGLE",2*($L16*VLOOKUP($D16,LouverData,15,FALSE) + $M16*VLOOKUP($D16,LouverData,17,FALSE))+2*($O16*VLOOKUP($D16,LouverData,16,FALSE) + ($M16-VLOOKUP($D16,LouverData,14,FALSE))*VLOOKUP($D16,LouverData,15,FALSE)),0)) -> 0 | AQ16: =IF(OR($D16="",$G16=0,$H16=0),0,IF($D16="OHL-DR DOUBLE",2*($L16*VLOOKUP($D16,LouverData,15,FALSE) + $M16*VLOOKUP($D16,LouverData,17,FALSE))+4*($O16*VLOOKUP($D16,LouverData,16,FALSE) + ($M16-2*VLOOKUP($D16,LouverData,14,FALSE))*VLOOKUP($D16,LouverData,15,FALSE)),0)) -> 0 | AR16: =IF(OR($D16="",$G16=0,$H16=0),0,(($M16*$O16*VLOOKUP($D16,LouverData,25,FALSE))/1000000)) -> 0 | AS16: =IF(OR($D16="",$G16=0,$H16=0),0,(VLOOKUP($D16,LouverData,26,FALSE))) -> 0 | AT16: =IF(OR($D16="",$G16=0,$H16=0),"",IF(VLOOKUP($D16,LouverData,20,FALSE)=0,"N/A",$AI16/1000*$AJ16/1000)) ->  | AU16: =IF(OR($D16="",$G16=0,$H16=0),"",IF(VLOOKUP($D16,LouverData,20,FALSE)=0,"N/A",($AI16*$AJ16)/($G16*$H16))) ->  | AV16: =IF(OR($D16="",$F16="",$G16=0,$H16=0),"",IF(VLOOKUP($D16,LouverData,20,FALSE)=0,"N/A",$F16/($G16*$H16/1000000))) ->  | AW16: =IF(OR($D16="",$F16="",$G16=0,$H16=0),"",IF(VLOOKUP($D16,LouverData,20,FALSE)=0,"N/A",$F16/($AI16*$AJ16/1000000))) ->  | AX16: =IF(OR($D16="",$F16="",$G16=0,$H16=0,$I16=0),"",IF(VLOOKUP($D16,LouverData,27,FALSE)=0,"N/A",IF($I16="E",$AW16^2*(VLOOKUP($D16,LouverData,27,FALSE))+$AW16*(VLOOKUP($D16,LouverData,28,FALSE))+(VLOOKUP($D16,LouverData,29,FALSE)),$AW16^2*(VLOOKUP($D16,LouverData,30,FALSE))+$AW16*(VLOOKUP($D16,LouverData,31,FALSE))+(VLOOKUP($D16,LouverData,32,FALSE))))) ->  | AY16: =IF(OR($D16="",$F16="",$G16=0,$H16=0,$I16=0),"",IF(VLOOKUP($D16,LouverData,27,FALSE)=0,"N/A",$AV16*(SQRT(1.19/(2*$AX16))))) ->  | BA16: =IF($D16="","",VLOOKUP($D16,LouverData,6,FALSE)) ->  | BB16: =IF($D16="","",VLOOKUP($D16,LouverData,10,FALSE)) ->  | BC16: =IF($D16="","",VLOOKUP($D16,LouverData,33,FALSE)) ->  | BD16: =IF($D16="","",VLOOKUP($D16,LouverData,34,FALSE)) ->  | BE16: =IF($D16="","",VLOOKUP($D16,LouverData,35,FALSE)) ->  | BF16: =IF($D16="","",VLOOKUP($D16,LouverData,36,FALSE)) ->  | BG16: =IF($D16="","",VLOOKUP($D16,LouverData,37,FALSE)) ->  | BH16: =IF($D16="","",VLOOKUP($D16,LouverData,38,FALSE)) ->  | BI16: =IF($D16="","",VLOOKUP($D16,LouverData,39,FALSE)) ->  | BJ16: =IF($D16="","",VLOOKUP($D16,LouverData,40,FALSE)) ->  | BK16: =IF($D16="","",VLOOKUP($D16,LouverData,41,FALSE)) ->  | BL16: =IF($D16="","",VLOOKUP($D16,LouverData,42,FALSE)) ->  | BM16: =IF($D16="","",VLOOKUP($D16,LouverData,43,FALSE)) ->  | BN16: =IF($D16="","",VLOOKUP($D16,LouverData,44,FALSE)) ->  | BO16: =IF($D16="","",VLOOKUP($D16,LouverData,45,FALSE)) ->  | BP16: =IF($D16="","",VLOOKUP($D16,LouverData,46,FALSE)) -> 
B17: 7 | K17: 0 | L17: 0 | M17: =IF(OR($D17="",$G17=0,$H17=0),0,($K17-VLOOKUP($D17,LouverData,12,FALSE))) -> 0 | N17: =IF(OR($D17="",$G17=0,$H17=0),0,IF($D17="OHL-100WT",($K17-VLOOKUP("OHL-102",LouverData,12,FALSE)),0)) -> 0 | O17: =IF(OR($D17="",$G17=0,$H17=0),0,($L17-VLOOKUP($D17,LouverData,13,FALSE))) -> 0 | P17: =IF(OR($D17="",$G17=0,$H17=0),0,IF($D17="OHL-100WT",($L17-VLOOKUP("OHL-102",LouverData,13,FALSE)),0)) -> 0 | Q17: =IF(OR($D17="",$G17=0,$H17=0),0,IF(VLOOKUP($D17,LouverData,19,FALSE)=0,0,(IF(AND(NOT($D17="OVL-99"),NOT($D17="OHL-100WT")),(ROUNDUP($O17/VLOOKUP($D17,LouverData,19,FALSE),0)+1),0)))) -> 0 | R17: =IF(OR($D17="",$G17=0,$H17=0),0,IF(OR($D17="OVL-99",$D17="OHL-100WT"),(ROUNDUP($M17/VLOOKUP($D17,LouverData,19,FALSE),0)+1),0)) -> 0 | S17: =IF(OR($D17="",$G17=0,$H17=0),0,IF($D17="OHL-100WT",(ROUNDUP(P17/VLOOKUP("OHL-102",LouverData,19,FALSE),0)+1),0)) -> 0 | T17: =IF(OR($D17="",$G17=0,$H17=0),0,IF(VLOOKUP($D17,LouverData,22,FALSE)=0,0,(IF(AND(NOT($D17="OVL-99"),NOT($D17="OHL-100WT")),(IF($K17>500,ROUNDDOWN((($K17-100)/VLOOKUP($D17,LouverData,22,FALSE))+IF($D17="OHL-D",0,2),0),0)),0)))) -> 0 | U17: =IF(OR($D17="",$G17=0,$H17=0),0,IF(OR($D17="OVL-99",$D17="OHL-100WT"),(IF($L17>500,ROUNDDOWN((($L17-100)/VLOOKUP($D17,LouverData,22,FALSE))+2,0),0)),0)) -> 0 | V17: =IF(OR($D17="",$G17=0,$H17=0),0,IF($D17="OHL-100WT",(IF($K17>500,ROUNDDOWN((($K17-100)/VLOOKUP("OHL-102",LouverData,22,FALSE))+2,0),0)),0)) -> 0 | W17: 0 | X17: 0 | Y17: =IF(OR($D17="",$G17=0,$H17=0),0,(IF(AND(NOT($D17="OVL-99"),NOT($D17="OHL-100WT")),($M17-$T17*VLOOKUP($D17,LouverData,23,FALSE)),0))) -> 0 | Z17: =IF(OR($D17="",$G17=0,$H17=0),0,(IF(AND(NOT($D17="OVL-99"),NOT($D17="OHL-100WT")),(($Q17-2)*VLOOKUP($D17,LouverData,20,FALSE)),0))) -> 0 | AA17: =IF(OR($D17="",$G17=0,$H17=0,$Z17=0),0,($O17/VLOOKUP($D17,LouverData,19,FALSE))-($Z17/VLOOKUP($D17,LouverData,20,FALSE))) -> 0 | AB17: =IF(OR($D17="",$G17=0,$H17=0),0,(IF(OR($D17="OVL-99",$D17="OHL-100WT"),(($R17-2)*VLOOKUP($D17,LouverData,20,FALSE)),0))) -> 0 | AC17: =IF(OR($D17="",$G17=0,$H17=0),0,(IF(OR($D17="OVL-99",$D17="OHL-100WT"),($O17-$U17*VLOOKUP($D17,LouverData,23,FALSE)),0))) -> 0 | AD17: =IF(OR($D17="",$G17=0,$H17=0,$AB17=0),0,($M17/VLOOKUP($D17,LouverData,19,FALSE))-($AB17/VLOOKUP($D17,LouverData,20,FALSE))) -> 0 | AE17: 0 | AF17: =IF(OR($D17="",$G17=0,$H17=0),0,(IF(($AA17*VLOOKUP($D17,LouverData,19,FALSE))>=VLOOKUP($D17,LouverData,20,FALSE),$Z17+VLOOKUP($D17,LouverData,20,FALSE),$Z17+$AA17*VLOOKUP($D17,LouverData,19,FALSE)))) -> 0 | AG17: =IF(OR($D17="",$G17=0,$H17=0),0,(IF(($AD17*VLOOKUP($D17,LouverData,19,FALSE))>=VLOOKUP($D17,LouverData,20,FALSE),$AB17+VLOOKUP($D17,LouverData,20,FALSE),$AB17+$AD17*VLOOKUP($D17,LouverData,19,FALSE)))) -> 0 | AH17: 0 | AI17: 0 | AJ17: 0 | AK17: =IF(OR($D17="",$G17=0,$H17=0),0,($M17*$Q17*VLOOKUP($D17,LouverData,18,FALSE))+($M17*$S17*VLOOKUP("OHL-102",LouverData,18,FALSE))) -> 0 | AL17: =IF(OR($D17="",$G17=0,$H17=0),0,($O17*$R17*VLOOKUP($D17,LouverData,18,FALSE))) -> 0 | AM17: =IF(OR($D17="",$G17=0,$H17=0),0,(($O17*$T17*VLOOKUP($D17,LouverData,21,FALSE))+($P17*$V17*VLOOKUP("OHL-45",LouverData,21,FALSE))+$W17*VLOOKUP($D17,LouverData,24,FALSE)+$X17*VLOOKUP("OHL-102",LouverData,24,FALSE))) -> 0 | AN17: =IF(OR($D17="",$G17=0,$H17=0),0,($M17*$U17*VLOOKUP($D17,LouverData,21,FALSE))) -> 0 | AO17: =IF(OR($D17="",$G17=0,$H17=0),0,IF(VLOOKUP($D17,LouverData,19,FALSE)=0,0,($M17*(VLOOKUP($D17,LouverData,15,FALSE)+VLOOKUP($D17,LouverData,16,FALSE))+2*$L17*VLOOKUP($D17,LouverData,17,FALSE)))) -> 0 | AP17: =IF(OR($D17="",$G17=0,$H17=0),0,IF($D17="OHL-DR SINGLE",2*($L17*VLOOKUP($D17,LouverData,15,FALSE) + $M17*VLOOKUP($D17,LouverData,17,FALSE))+2*($O17*VLOOKUP($D17,LouverData,16,FALSE) + ($M17-VLOOKUP($D17,LouverData,14,FALSE))*VLOOKUP($D17,LouverData,15,FALSE)),0)) -> 0 | AQ17: =IF(OR($D17="",$G17=0,$H17=0),0,IF($D17="OHL-DR DOUBLE",2*($L17*VLOOKUP($D17,LouverData,15,FALSE) + $M17*VLOOKUP($D17,LouverData,17,FALSE))+4*($O17*VLOOKUP($D17,LouverData,16,FALSE) + ($M17-2*VLOOKUP($D17,LouverData,14,FALSE))*VLOOKUP($D17,LouverData,15,FALSE)),0)) -> 0 | AR17: =IF(OR($D17="",$G17=0,$H17=0),0,(($M17*$O17*VLOOKUP($D17,LouverData,25,FALSE))/1000000)) -> 0 | AS17: =IF(OR($D17="",$G17=0,$H17=0),0,(VLOOKUP($D17,LouverData,26,FALSE))) -> 0 | AT17: =IF(OR($D17="",$G17=0,$H17=0),"",IF(VLOOKUP($D17,LouverData,20,FALSE)=0,"N/A",$AI17/1000*$AJ17/1000)) ->  | AU17: =IF(OR($D17="",$G17=0,$H17=0),"",IF(VLOOKUP($D17,LouverData,20,FALSE)=0,"N/A",($AI17*$AJ17)/($G17*$H17))) ->  | AV17: =IF(OR($D17="",$F17="",$G17=0,$H17=0),"",IF(VLOOKUP($D17,LouverData,20,FALSE)=0,"N/A",$F17/($G17*$H17/1000000))) ->  | AW17: =IF(OR($D17="",$F17="",$G17=0,$H17=0),"",IF(VLOOKUP($D17,LouverData,20,FALSE)=0,"N/A",$F17/($AI17*$AJ17/1000000))) ->  | AX17: =IF(OR($D17="",$F17="",$G17=0,$H17=0,$I17=0),"",IF(VLOOKUP($D17,LouverData,27,FALSE)=0,"N/A",IF($I17="E",$AW17^2*(VLOOKUP($D17,LouverData,27,FALSE))+$AW17*(VLOOKUP($D17,LouverData,28,FALSE))+(VLOOKUP($D17,LouverData,29,FALSE)),$AW17^2*(VLOOKUP($D17,LouverData,30,FALSE))+$AW17*(VLOOKUP($D17,LouverData,31,FALSE))+(VLOOKUP($D17,LouverData,32,FALSE))))) ->  | AY17: =IF(OR($D17="",$F17="",$G17=0,$H17=0,$I17=0),"",IF(VLOOKUP($D17,LouverData,27,FALSE)=0,"N/A",$AV17*(SQRT(1.19/(2*$AX17))))) ->  | BA17: =IF($D17="","",VLOOKUP($D17,LouverData,6,FALSE)) ->  | BB17: =IF($D17="","",VLOOKUP($D17,LouverData,10,FALSE)) ->  | BC17: =IF($D17="","",VLOOKUP($D17,LouverData,33,FALSE)) ->  | BD17: =IF($D17="","",VLOOKUP($D17,LouverData,34,FALSE)) ->  | BE17: =IF($D17="","",VLOOKUP($D17,LouverData,35,FALSE)) ->  | BF17: =IF($D17="","",VLOOKUP($D17,LouverData,36,FALSE)) ->  | BG17: =IF($D17="","",VLOOKUP($D17,LouverData,37,FALSE)) ->  | BH17: =IF($D17="","",VLOOKUP($D17,LouverData,38,FALSE)) ->  | BI17: =IF($D17="","",VLOOKUP($D17,LouverData,39,FALSE)) ->  | BJ17: =IF($D17="","",VLOOKUP($D17,LouverData,40,FALSE)) ->  | BK17: =IF($D17="","",VLOOKUP($D17,LouverData,41,FALSE)) ->  | BL17: =IF($D17="","",VLOOKUP($D17,LouverData,42,FALSE)) ->  | BM17: =IF($D17="","",VLOOKUP($D17,LouverData,43,FALSE)) ->  | BN17: =IF($D17="","",VLOOKUP($D17,LouverData,44,FALSE)) ->  | BO17: =IF($D17="","",VLOOKUP($D17,LouverData,45,FALSE)) ->  | BP17: =IF($D17="","",VLOOKUP($D17,LouverData,46,FALSE)) -> 
B18: 8 | F18: =IF($E18=0,"",$E18/1000) ->  | K18: 0 | L18: 0 | M18: =IF(OR($D18="",$G18=0,$H18=0),0,($K18-VLOOKUP($D18,LouverData,12,FALSE))) -> 0 | N18: =IF(OR($D18="",$G18=0,$H18=0),0,IF($D18="OHL-100WT",($K18-VLOOKUP("OHL-102",LouverData,12,FALSE)),0)) -> 0 | O18: =IF(OR($D18="",$G18=0,$H18=0),0,($L18-VLOOKUP($D18,LouverData,13,FALSE))) -> 0 | P18: =IF(OR($D18="",$G18=0,$H18=0),0,IF($D18="OHL-100WT",($L18-VLOOKUP("OHL-102",LouverData,13,FALSE)),0)) -> 0 | Q18: =IF(OR($D18="",$G18=0,$H18=0),0,IF(VLOOKUP($D18,LouverData,19,FALSE)=0,0,(IF(AND(NOT($D18="OVL-99"),NOT($D18="OHL-100WT")),(ROUNDUP($O18/VLOOKUP($D18,LouverData,19,FALSE),0)+1),0)))) -> 0 | R18: =IF(OR($D18="",$G18=0,$H18=0),0,IF(OR($D18="OVL-99",$D18="OHL-100WT"),(ROUNDUP($M18/VLOOKUP($D18,LouverData,19,FALSE),0)+1),0)) -> 0 | S18: =IF(OR($D18="",$G18=0,$H18=0),0,IF($D18="OHL-100WT",(ROUNDUP(P18/VLOOKUP("OHL-102",LouverData,19,FALSE),0)+1),0)) -> 0 | T18: =IF(OR($D18="",$G18=0,$H18=0),0,IF(VLOOKUP($D18,LouverData,22,FALSE)=0,0,(IF(AND(NOT($D18="OVL-99"),NOT($D18="OHL-100WT")),(IF($K18>500,ROUNDDOWN((($K18-100)/VLOOKUP($D18,LouverData,22,FALSE))+IF($D18="OHL-D",0,2),0),0)),0)))) -> 0 | U18: =IF(OR($D18="",$G18=0,$H18=0),0,IF(OR($D18="OVL-99",$D18="OHL-100WT"),(IF($L18>500,ROUNDDOWN((($L18-100)/VLOOKUP($D18,LouverData,22,FALSE))+2,0),0)),0)) -> 0 | V18: =IF(OR($D18="",$G18=0,$H18=0),0,IF($D18="OHL-100WT",(IF($K18>500,ROUNDDOWN((($K18-100)/VLOOKUP("OHL-102",LouverData,22,FALSE))+2,0),0)),0)) -> 0 | W18: 0 | X18: 0 | Y18: =IF(OR($D18="",$G18=0,$H18=0),0,(IF(AND(NOT($D18="OVL-99"),NOT($D18="OHL-100WT")),($M18-$T18*VLOOKUP($D18,LouverData,23,FALSE)),0))) -> 0 | Z18: =IF(OR($D18="",$G18=0,$H18=0),0,(IF(AND(NOT($D18="OVL-99"),NOT($D18="OHL-100WT")),(($Q18-2)*VLOOKUP($D18,LouverData,20,FALSE)),0))) -> 0 | AA18: =IF(OR($D18="",$G18=0,$H18=0,$Z18=0),0,($O18/VLOOKUP($D18,LouverData,19,FALSE))-($Z18/VLOOKUP($D18,LouverData,20,FALSE))) -> 0 | AB18: =IF(OR($D18="",$G18=0,$H18=0),0,(IF(OR($D18="OVL-99",$D18="OHL-100WT"),(($R18-2)*VLOOKUP($D18,LouverData,20,FALSE)),0))) -> 0 | AC18: =IF(OR($D18="",$G18=0,$H18=0),0,(IF(OR($D18="OVL-99",$D18="OHL-100WT"),($O18-$U18*VLOOKUP($D18,LouverData,23,FALSE)),0))) -> 0 | AD18: =IF(OR($D18="",$G18=0,$H18=0,$AB18=0),0,($M18/VLOOKUP($D18,LouverData,19,FALSE))-($AB18/VLOOKUP($D18,LouverData,20,FALSE))) -> 0 | AE18: 0 | AF18: =IF(OR($D18="",$G18=0,$H18=0),0,(IF(($AA18*VLOOKUP($D18,LouverData,19,FALSE))>=VLOOKUP($D18,LouverData,20,FALSE),$Z18+VLOOKUP($D18,LouverData,20,FALSE),$Z18+$AA18*VLOOKUP($D18,LouverData,19,FALSE)))) -> 0 | AG18: =IF(OR($D18="",$G18=0,$H18=0),0,(IF(($AD18*VLOOKUP($D18,LouverData,19,FALSE))>=VLOOKUP($D18,LouverData,20,FALSE),$AB18+VLOOKUP($D18,LouverData,20,FALSE),$AB18+$AD18*VLOOKUP($D18,LouverData,19,FALSE)))) -> 0 | AH18: 0 | AI18: 0 | AJ18: 0 | AK18: =IF(OR($D18="",$G18=0,$H18=0),0,($M18*$Q18*VLOOKUP($D18,LouverData,18,FALSE))+($M18*$S18*VLOOKUP("OHL-102",LouverData,18,FALSE))) -> 0 | AL18: =IF(OR($D18="",$G18=0,$H18=0),0,($O18*$R18*VLOOKUP($D18,LouverData,18,FALSE))) -> 0 | AM18: =IF(OR($D18="",$G18=0,$H18=0),0,(($O18*$T18*VLOOKUP($D18,LouverData,21,FALSE))+($P18*$V18*VLOOKUP("OHL-45",LouverData,21,FALSE))+$W18*VLOOKUP($D18,LouverData,24,FALSE)+$X18*VLOOKUP("OHL-102",LouverData,24,FALSE))) -> 0 | AN18: =IF(OR($D18="",$G18=0,$H18=0),0,($M18*$U18*VLOOKUP($D18,LouverData,21,FALSE))) -> 0 | AO18: =IF(OR($D18="",$G18=0,$H18=0),0,IF(VLOOKUP($D18,LouverData,19,FALSE)=0,0,($M18*(VLOOKUP($D18,LouverData,15,FALSE)+VLOOKUP($D18,LouverData,16,FALSE))+2*$L18*VLOOKUP($D18,LouverData,17,FALSE)))) -> 0 | AP18: =IF(OR($D18="",$G18=0,$H18=0),0,IF($D18="OHL-DR SINGLE",2*($L18*VLOOKUP($D18,LouverData,15,FALSE) + $M18*VLOOKUP($D18,LouverData,17,FALSE))+2*($O18*VLOOKUP($D18,LouverData,16,FALSE) + ($M18-VLOOKUP($D18,LouverData,14,FALSE))*VLOOKUP($D18,LouverData,15,FALSE)),0)) -> 0 | AQ18: =IF(OR($D18="",$G18=0,$H18=0),0,IF($D18="OHL-DR DOUBLE",2*($L18*VLOOKUP($D18,LouverData,15,FALSE) + $M18*VLOOKUP($D18,LouverData,17,FALSE))+4*($O18*VLOOKUP($D18,LouverData,16,FALSE) + ($M18-2*VLOOKUP($D18,LouverData,14,FALSE))*VLOOKUP($D18,LouverData,15,FALSE)),0)) -> 0 | AR18: =IF(OR($D18="",$G18=0,$H18=0),0,(($M18*$O18*VLOOKUP($D18,LouverData,25,FALSE))/1000000)) -> 0 | AS18: =IF(OR($D18="",$G18=0,$H18=0),0,(VLOOKUP($D18,LouverData,26,FALSE))) -> 0 | AT18: =IF(OR($D18="",$G18=0,$H18=0),"",IF(VLOOKUP($D18,LouverData,20,FALSE)=0,"N/A",$AI18/1000*$AJ18/1000)) ->  | AU18: =IF(OR($D18="",$G18=0,$H18=0),"",IF(VLOOKUP($D18,LouverData,20,FALSE)=0,"N/A",($AI18*$AJ18)/($G18*$H18))) ->  | AV18: =IF(OR($D18="",$F18="",$G18=0,$H18=0),"",IF(VLOOKUP($D18,LouverData,20,FALSE)=0,"N/A",$F18/($G18*$H18/1000000))) ->  | AW18: =IF(OR($D18="",$F18="",$G18=0,$H18=0),"",IF(VLOOKUP($D18,LouverData,20,FALSE)=0,"N/A",$F18/($AI18*$AJ18/1000000))) ->  | AX18: =IF(OR($D18="",$F18="",$G18=0,$H18=0,$I18=0),"",IF(VLOOKUP($D18,LouverData,27,FALSE)=0,"N/A",IF($I18="E",$AW18^2*(VLOOKUP($D18,LouverData,27,FALSE))+$AW18*(VLOOKUP($D18,LouverData,28,FALSE))+(VLOOKUP($D18,LouverData,29,FALSE)),$AW18^2*(VLOOKUP($D18,LouverData,30,FALSE))+$AW18*(VLOOKUP($D18,LouverData,31,FALSE))+(VLOOKUP($D18,LouverData,32,FALSE))))) ->  | AY18: =IF(OR($D18="",$F18="",$G18=0,$H18=0,$I18=0),"",IF(VLOOKUP($D18,LouverData,27,FALSE)=0,"N/A",$AV18*(SQRT(1.19/(2*$AX18))))) ->  | BA18: =IF($D18="","",VLOOKUP($D18,LouverData,6,FALSE)) ->  | BB18: =IF($D18="","",VLOOKUP($D18,LouverData,10,FALSE)) ->  | BC18: =IF($D18="","",VLOOKUP($D18,LouverData,33,FALSE)) ->  | BD18: =IF($D18="","",VLOOKUP($D18,LouverData,34,FALSE)) ->  | BE18: =IF($D18="","",VLOOKUP($D18,LouverData,35,FALSE)) ->  | BF18: =IF($D18="","",VLOOKUP($D18,LouverData,36,FALSE)) ->  | BG18: =IF($D18="","",VLOOKUP($D18,LouverData,37,FALSE)) ->  | BH18: =IF($D18="","",VLOOKUP($D18,LouverData,38,FALSE)) ->  | BI18: =IF($D18="","",VLOOKUP($D18,LouverData,39,FALSE)) ->  | BJ18: =IF($D18="","",VLOOKUP($D18,LouverData,40,FALSE)) ->  | BK18: =IF($D18="","",VLOOKUP($D18,LouverData,41,FALSE)) ->  | BL18: =IF($D18="","",VLOOKUP($D18,LouverData,42,FALSE)) ->  | BM18: =IF($D18="","",VLOOKUP($D18,LouverData,43,FALSE)) ->  | BN18: =IF($D18="","",VLOOKUP($D18,LouverData,44,FALSE)) ->  | BO18: =IF($D18="","",VLOOKUP($D18,LouverData,45,FALSE)) ->  | BP18: =IF($D18="","",VLOOKUP($D18,LouverData,46,FALSE)) -> 
B19: 9 | K19: 0 | L19: 0 | M19: =IF(OR($D19="",$G19=0,$H19=0),0,($K19-VLOOKUP($D19,LouverData,12,FALSE))) -> 0 | N19: =IF(OR($D19="",$G19=0,$H19=0),0,IF($D19="OHL-100WT",($K19-VLOOKUP("OHL-102",LouverData,12,FALSE)),0)) -> 0 | O19: =IF(OR($D19="",$G19=0,$H19=0),0,($L19-VLOOKUP($D19,LouverData,13,FALSE))) -> 0 | P19: =IF(OR($D19="",$G19=0,$H19=0),0,IF($D19="OHL-100WT",($L19-VLOOKUP("OHL-102",LouverData,13,FALSE)),0)) -> 0 | Q19: =IF(OR($D19="",$G19=0,$H19=0),0,IF(VLOOKUP($D19,LouverData,19,FALSE)=0,0,(IF(AND(NOT($D19="OVL-99"),NOT($D19="OHL-100WT")),(ROUNDUP($O19/VLOOKUP($D19,LouverData,19,FALSE),0)+1),0)))) -> 0 | R19: =IF(OR($D19="",$G19=0,$H19=0),0,IF(OR($D19="OVL-99",$D19="OHL-100WT"),(ROUNDUP($M19/VLOOKUP($D19,LouverData,19,FALSE),0)+1),0)) -> 0 | S19: =IF(OR($D19="",$G19=0,$H19=0),0,IF($D19="OHL-100WT",(ROUNDUP(P19/VLOOKUP("OHL-102",LouverData,19,FALSE),0)+1),0)) -> 0 | T19: =IF(OR($D19="",$G19=0,$H19=0),0,IF(VLOOKUP($D19,LouverData,22,FALSE)=0,0,(IF(AND(NOT($D19="OVL-99"),NOT($D19="OHL-100WT")),(IF($K19>500,ROUNDDOWN((($K19-100)/VLOOKUP($D19,LouverData,22,FALSE))+IF($D19="OHL-D",0,2),0),0)),0)))) -> 0 | U19: =IF(OR($D19="",$G19=0,$H19=0),0,IF(OR($D19="OVL-99",$D19="OHL-100WT"),(IF($L19>500,ROUNDDOWN((($L19-100)/VLOOKUP($D19,LouverData,22,FALSE))+2,0),0)),0)) -> 0 | V19: =IF(OR($D19="",$G19=0,$H19=0),0,IF($D19="OHL-100WT",(IF($K19>500,ROUNDDOWN((($K19-100)/VLOOKUP("OHL-102",LouverData,22,FALSE))+2,0),0)),0)) -> 0 | W19: 0 | X19: 0 | Y19: =IF(OR($D19="",$G19=0,$H19=0),0,(IF(AND(NOT($D19="OVL-99"),NOT($D19="OHL-100WT")),($M19-$T19*VLOOKUP($D19,LouverData,23,FALSE)),0))) -> 0 | Z19: =IF(OR($D19="",$G19=0,$H19=0),0,(IF(AND(NOT($D19="OVL-99"),NOT($D19="OHL-100WT")),(($Q19-2)*VLOOKUP($D19,LouverData,20,FALSE)),0))) -> 0 | AA19: =IF(OR($D19="",$G19=0,$H19=0,$Z19=0),0,($O19/VLOOKUP($D19,LouverData,19,FALSE))-($Z19/VLOOKUP($D19,LouverData,20,FALSE))) -> 0 | AB19: =IF(OR($D19="",$G19=0,$H19=0),0,(IF(OR($D19="OVL-99",$D19="OHL-100WT"),(($R19-2)*VLOOKUP($D19,LouverData,20,FALSE)),0))) -> 0 | AC19: =IF(OR($D19="",$G19=0,$H19=0),0,(IF(OR($D19="OVL-99",$D19="OHL-100WT"),($O19-$U19*VLOOKUP($D19,LouverData,23,FALSE)),0))) -> 0 | AD19: =IF(OR($D19="",$G19=0,$H19=0,$AB19=0),0,($M19/VLOOKUP($D19,LouverData,19,FALSE))-($AB19/VLOOKUP($D19,LouverData,20,FALSE))) -> 0 | AE19: 0 | AF19: =IF(OR($D19="",$G19=0,$H19=0),0,(IF(($AA19*VLOOKUP($D19,LouverData,19,FALSE))>=VLOOKUP($D19,LouverData,20,FALSE),$Z19+VLOOKUP($D19,LouverData,20,FALSE),$Z19+$AA19*VLOOKUP($D19,LouverData,19,FALSE)))) -> 0 | AG19: =IF(OR($D19="",$G19=0,$H19=0),0,(IF(($AD19*VLOOKUP($D19,LouverData,19,FALSE))>=VLOOKUP($D19,LouverData,20,FALSE),$AB19+VLOOKUP($D19,LouverData,20,FALSE),$AB19+$AD19*VLOOKUP($D19,LouverData,19,FALSE)))) -> 0 | AH19: 0 | AI19: 0 | AJ19: 0 | AK19: =IF(OR($D19="",$G19=0,$H19=0),0,($M19*$Q19*VLOOKUP($D19,LouverData,18,FALSE))+($M19*$S19*VLOOKUP("OHL-102",LouverData,18,FALSE))) -> 0 | AL19: =IF(OR($D19="",$G19=0,$H19=0),0,($O19*$R19*VLOOKUP($D19,LouverData,18,FALSE))) -> 0 | AM19: =IF(OR($D19="",$G19=0,$H19=0),0,(($O19*$T19*VLOOKUP($D19,LouverData,21,FALSE))+($P19*$V19*VLOOKUP("OHL-45",LouverData,21,FALSE))+$W19*VLOOKUP($D19,LouverData,24,FALSE)+$X19*VLOOKUP("OHL-102",LouverData,24,FALSE))) -> 0 | AN19: =IF(OR($D19="",$G19=0,$H19=0),0,($M19*$U19*VLOOKUP($D19,LouverData,21,FALSE))) -> 0 | AO19: =IF(OR($D19="",$G19=0,$H19=0),0,IF(VLOOKUP($D19,LouverData,19,FALSE)=0,0,($M19*(VLOOKUP($D19,LouverData,15,FALSE)+VLOOKUP($D19,LouverData,16,FALSE))+2*$L19*VLOOKUP($D19,LouverData,17,FALSE)))) -> 0 | AP19: =IF(OR($D19="",$G19=0,$H19=0),0,IF($D19="OHL-DR SINGLE",2*($L19*VLOOKUP($D19,LouverData,15,FALSE) + $M19*VLOOKUP($D19,LouverData,17,FALSE))+2*($O19*VLOOKUP($D19,LouverData,16,FALSE) + ($M19-VLOOKUP($D19,LouverData,14,FALSE))*VLOOKUP($D19,LouverData,15,FALSE)),0)) -> 0 | AQ19: =IF(OR($D19="",$G19=0,$H19=0),0,IF($D19="OHL-DR DOUBLE",2*($L19*VLOOKUP($D19,LouverData,15,FALSE) + $M19*VLOOKUP($D19,LouverData,17,FALSE))+4*($O19*VLOOKUP($D19,LouverData,16,FALSE) + ($M19-2*VLOOKUP($D19,LouverData,14,FALSE))*VLOOKUP($D19,LouverData,15,FALSE)),0)) -> 0 | AR19: =IF(OR($D19="",$G19=0,$H19=0),0,(($M19*$O19*VLOOKUP($D19,LouverData,25,FALSE))/1000000)) -> 0 | AS19: =IF(OR($D19="",$G19=0,$H19=0),0,(VLOOKUP($D19,LouverData,26,FALSE))) -> 0 | AT19: =IF(OR($D19="",$G19=0,$H19=0),"",IF(VLOOKUP($D19,LouverData,20,FALSE)=0,"N/A",$AI19/1000*$AJ19/1000)) ->  | AU19: =IF(OR($D19="",$G19=0,$H19=0),"",IF(VLOOKUP($D19,LouverData,20,FALSE)=0,"N/A",($AI19*$AJ19)/($G19*$H19))) ->  | AV19: =IF(OR($D19="",$F19="",$G19=0,$H19=0),"",IF(VLOOKUP($D19,LouverData,20,FALSE)=0,"N/A",$F19/($G19*$H19/1000000))) ->  | AW19: =IF(OR($D19="",$F19="",$G19=0,$H19=0),"",IF(VLOOKUP($D19,LouverData,20,FALSE)=0,"N/A",$F19/($AI19*$AJ19/1000000))) ->  | AX19: =IF(OR($D19="",$F19="",$G19=0,$H19=0,$I19=0),"",IF(VLOOKUP($D19,LouverData,27,FALSE)=0,"N/A",IF($I19="E",$AW19^2*(VLOOKUP($D19,LouverData,27,FALSE))+$AW19*(VLOOKUP($D19,LouverData,28,FALSE))+(VLOOKUP($D19,LouverData,29,FALSE)),$AW19^2*(VLOOKUP($D19,LouverData,30,FALSE))+$AW19*(VLOOKUP($D19,LouverData,31,FALSE))+(VLOOKUP($D19,LouverData,32,FALSE))))) ->  | AY19: =IF(OR($D19="",$F19="",$G19=0,$H19=0,$I19=0),"",IF(VLOOKUP($D19,LouverData,27,FALSE)=0,"N/A",$AV19*(SQRT(1.19/(2*$AX19))))) ->  | BA19: =IF($D19="","",VLOOKUP($D19,LouverData,6,FALSE)) ->  | BB19: =IF($D19="","",VLOOKUP($D19,LouverData,10,FALSE)) ->  | BC19: =IF($D19="","",VLOOKUP($D19,LouverData,33,FALSE)) ->  | BD19: =IF($D19="","",VLOOKUP($D19,LouverData,34,FALSE)) ->  | BE19: =IF($D19="","",VLOOKUP($D19,LouverData,35,FALSE)) ->  | BF19: =IF($D19="","",VLOOKUP($D19,LouverData,36,FALSE)) ->  | BG19: =IF($D19="","",VLOOKUP($D19,LouverData,37,FALSE)) ->  | BH19: =IF($D19="","",VLOOKUP($D19,LouverData,38,FALSE)) ->  | BI19: =IF($D19="","",VLOOKUP($D19,LouverData,39,FALSE)) ->  | BJ19: =IF($D19="","",VLOOKUP($D19,LouverData,40,FALSE)) ->  | BK19: =IF($D19="","",VLOOKUP($D19,LouverData,41,FALSE)) ->  | BL19: =IF($D19="","",VLOOKUP($D19,LouverData,42,FALSE)) ->  | BM19: =IF($D19="","",VLOOKUP($D19,LouverData,43,FALSE)) ->  | BN19: =IF($D19="","",VLOOKUP($D19,LouverData,44,FALSE)) ->  | BO19: =IF($D19="","",VLOOKUP($D19,LouverData,45,FALSE)) ->  | BP19: =IF($D19="","",VLOOKUP($D19,LouverData,46,FALSE)) -> 
B20: 10 | K20: 0 | L20: 0 | M20: =IF(OR($D20="",$G20=0,$H20=0),0,($K20-VLOOKUP($D20,LouverData,12,FALSE))) -> 0 | N20: =IF(OR($D20="",$G20=0,$H20=0),0,IF($D20="OHL-100WT",($K20-VLOOKUP("OHL-102",LouverData,12,FALSE)),0)) -> 0 | O20: =IF(OR($D20="",$G20=0,$H20=0),0,($L20-VLOOKUP($D20,LouverData,13,FALSE))) -> 0 | P20: =IF(OR($D20="",$G20=0,$H20=0),0,IF($D20="OHL-100WT",($L20-VLOOKUP("OHL-102",LouverData,13,FALSE)),0)) -> 0 | Q20: =IF(OR($D20="",$G20=0,$H20=0),0,IF(VLOOKUP($D20,LouverData,19,FALSE)=0,0,(IF(AND(NOT($D20="OVL-99"),NOT($D20="OHL-100WT")),(ROUNDUP($O20/VLOOKUP($D20,LouverData,19,FALSE),0)+1),0)))) -> 0 | R20: =IF(OR($D20="",$G20=0,$H20=0),0,IF(OR($D20="OVL-99",$D20="OHL-100WT"),(ROUNDUP($M20/VLOOKUP($D20,LouverData,19,FALSE),0)+1),0)) -> 0 | S20: =IF(OR($D20="",$G20=0,$H20=0),0,IF($D20="OHL-100WT",(ROUNDUP(P20/VLOOKUP("OHL-102",LouverData,19,FALSE),0)+1),0)) -> 0 | T20: =IF(OR($D20="",$G20=0,$H20=0),0,IF(VLOOKUP($D20,LouverData,22,FALSE)=0,0,(IF(AND(NOT($D20="OVL-99"),NOT($D20="OHL-100WT")),(IF($K20>500,ROUNDDOWN((($K20-100)/VLOOKUP($D20,LouverData,22,FALSE))+IF($D20="OHL-D",0,2),0),0)),0)))) -> 0 | U20: =IF(OR($D20="",$G20=0,$H20=0),0,IF(OR($D20="OVL-99",$D20="OHL-100WT"),(IF($L20>500,ROUNDDOWN((($L20-100)/VLOOKUP($D20,LouverData,22,FALSE))+2,0),0)),0)) -> 0 | V20: =IF(OR($D20="",$G20=0,$H20=0),0,IF($D20="OHL-100WT",(IF($K20>500,ROUNDDOWN((($K20-100)/VLOOKUP("OHL-102",LouverData,22,FALSE))+2,0),0)),0)) -> 0 | W20: 0 | X20: 0 | Y20: =IF(OR($D20="",$G20=0,$H20=0),0,(IF(AND(NOT($D20="OVL-99"),NOT($D20="OHL-100WT")),($M20-$T20*VLOOKUP($D20,LouverData,23,FALSE)),0))) -> 0 | Z20: =IF(OR($D20="",$G20=0,$H20=0),0,(IF(AND(NOT($D20="OVL-99"),NOT($D20="OHL-100WT")),(($Q20-2)*VLOOKUP($D20,LouverData,20,FALSE)),0))) -> 0 | AA20: =IF(OR($D20="",$G20=0,$H20=0,$Z20=0),0,($O20/VLOOKUP($D20,LouverData,19,FALSE))-($Z20/VLOOKUP($D20,LouverData,20,FALSE))) -> 0 | AB20: =IF(OR($D20="",$G20=0,$H20=0),0,(IF(OR($D20="OVL-99",$D20="OHL-100WT"),(($R20-2)*VLOOKUP($D20,LouverData,20,FALSE)),0))) -> 0 | AC20: =IF(OR($D20="",$G20=0,$H20=0),0,(IF(OR($D20="OVL-99",$D20="OHL-100WT"),($O20-$U20*VLOOKUP($D20,LouverData,23,FALSE)),0))) -> 0 | AD20: =IF(OR($D20="",$G20=0,$H20=0,$AB20=0),0,($M20/VLOOKUP($D20,LouverData,19,FALSE))-($AB20/VLOOKUP($D20,LouverData,20,FALSE))) -> 0 | AE20: 0 | AF20: =IF(OR($D20="",$G20=0,$H20=0),0,(IF(($AA20*VLOOKUP($D20,LouverData,19,FALSE))>=VLOOKUP($D20,LouverData,20,FALSE),$Z20+VLOOKUP($D20,LouverData,20,FALSE),$Z20+$AA20*VLOOKUP($D20,LouverData,19,FALSE)))) -> 0 | AG20: =IF(OR($D20="",$G20=0,$H20=0),0,(IF(($AD20*VLOOKUP($D20,LouverData,19,FALSE))>=VLOOKUP($D20,LouverData,20,FALSE),$AB20+VLOOKUP($D20,LouverData,20,FALSE),$AB20+$AD20*VLOOKUP($D20,LouverData,19,FALSE)))) -> 0 | AH20: 0 | AI20: 0 | AJ20: 0 | AK20: =IF(OR($D20="",$G20=0,$H20=0),0,($M20*$Q20*VLOOKUP($D20,LouverData,18,FALSE))+($M20*$S20*VLOOKUP("OHL-102",LouverData,18,FALSE))) -> 0 | AL20: =IF(OR($D20="",$G20=0,$H20=0),0,($O20*$R20*VLOOKUP($D20,LouverData,18,FALSE))) -> 0 | AM20: =IF(OR($D20="",$G20=0,$H20=0),0,(($O20*$T20*VLOOKUP($D20,LouverData,21,FALSE))+($P20*$V20*VLOOKUP("OHL-45",LouverData,21,FALSE))+$W20*VLOOKUP($D20,LouverData,24,FALSE)+$X20*VLOOKUP("OHL-102",LouverData,24,FALSE))) -> 0 | AN20: =IF(OR($D20="",$G20=0,$H20=0),0,($M20*$U20*VLOOKUP($D20,LouverData,21,FALSE))) -> 0 | AO20: =IF(OR($D20="",$G20=0,$H20=0),0,IF(VLOOKUP($D20,LouverData,19,FALSE)=0,0,($M20*(VLOOKUP($D20,LouverData,15,FALSE)+VLOOKUP($D20,LouverData,16,FALSE))+2*$L20*VLOOKUP($D20,LouverData,17,FALSE)))) -> 0 | AP20: =IF(OR($D20="",$G20=0,$H20=0),0,IF($D20="OHL-DR SINGLE",2*($L20*VLOOKUP($D20,LouverData,15,FALSE) + $M20*VLOOKUP($D20,LouverData,17,FALSE))+2*($O20*VLOOKUP($D20,LouverData,16,FALSE) + ($M20-VLOOKUP($D20,LouverData,14,FALSE))*VLOOKUP($D20,LouverData,15,FALSE)),0)) -> 0 | AQ20: =IF(OR($D20="",$G20=0,$H20=0),0,IF($D20="OHL-DR DOUBLE",2*($L20*VLOOKUP($D20,LouverData,15,FALSE) + $M20*VLOOKUP($D20,LouverData,17,FALSE))+4*($O20*VLOOKUP($D20,LouverData,16,FALSE) + ($M20-2*VLOOKUP($D20,LouverData,14,FALSE))*VLOOKUP($D20,LouverData,15,FALSE)),0)) -> 0 | AR20: =IF(OR($D20="",$G20=0,$H20=0),0,(($M20*$O20*VLOOKUP($D20,LouverData,25,FALSE))/1000000)) -> 0 | AS20: =IF(OR($D20="",$G20=0,$H20=0),0,(VLOOKUP($D20,LouverData,26,FALSE))) -> 0 | AT20: =IF(OR($D20="",$G20=0,$H20=0),"",IF(VLOOKUP($D20,LouverData,20,FALSE)=0,"N/A",$AI20/1000*$AJ20/1000)) ->  | AU20: =IF(OR($D20="",$G20=0,$H20=0),"",IF(VLOOKUP($D20,LouverData,20,FALSE)=0,"N/A",($AI20*$AJ20)/($G20*$H20))) ->  | AV20: =IF(OR($D20="",$F20="",$G20=0,$H20=0),"",IF(VLOOKUP($D20,LouverData,20,FALSE)=0,"N/A",$F20/($G20*$H20/1000000))) ->  | AW20: =IF(OR($D20="",$F20="",$G20=0,$H20=0),"",IF(VLOOKUP($D20,LouverData,20,FALSE)=0,"N/A",$F20/($AI20*$AJ20/1000000))) ->  | AX20: =IF(OR($D20="",$F20="",$G20=0,$H20=0,$I20=0),"",IF(VLOOKUP($D20,LouverData,27,FALSE)=0,"N/A",IF($I20="E",$AW20^2*(VLOOKUP($D20,LouverData,27,FALSE))+$AW20*(VLOOKUP($D20,LouverData,28,FALSE))+(VLOOKUP($D20,LouverData,29,FALSE)),$AW20^2*(VLOOKUP($D20,LouverData,30,FALSE))+$AW20*(VLOOKUP($D20,LouverData,31,FALSE))+(VLOOKUP($D20,LouverData,32,FALSE))))) ->  | AY20: =IF(OR($D20="",$F20="",$G20=0,$H20=0,$I20=0),"",IF(VLOOKUP($D20,LouverData,27,FALSE)=0,"N/A",$AV20*(SQRT(1.19/(2*$AX20))))) ->  | BA20: =IF($D20="","",VLOOKUP($D20,LouverData,6,FALSE)) ->  | BB20: =IF($D20="","",VLOOKUP($D20,LouverData,10,FALSE)) ->  | BC20: =IF($D20="","",VLOOKUP($D20,LouverData,33,FALSE)) ->  | BD20: =IF($D20="","",VLOOKUP($D20,LouverData,34,FALSE)) ->  | BE20: =IF($D20="","",VLOOKUP($D20,LouverData,35,FALSE)) ->  | BF20: =IF($D20="","",VLOOKUP($D20,LouverData,36,FALSE)) ->  | BG20: =IF($D20="","",VLOOKUP($D20,LouverData,37,FALSE)) ->  | BH20: =IF($D20="","",VLOOKUP($D20,LouverData,38,FALSE)) ->  | BI20: =IF($D20="","",VLOOKUP($D20,LouverData,39,FALSE)) ->  | BJ20: =IF($D20="","",VLOOKUP($D20,LouverData,40,FALSE)) ->  | BK20: =IF($D20="","",VLOOKUP($D20,LouverData,41,FALSE)) ->  | BL20: =IF($D20="","",VLOOKUP($D20,LouverData,42,FALSE)) ->  | BM20: =IF($D20="","",VLOOKUP($D20,LouverData,43,FALSE)) ->  | BN20: =IF($D20="","",VLOOKUP($D20,LouverData,44,FALSE)) ->  | BO20: =IF($D20="","",VLOOKUP($D20,LouverData,45,FALSE)) ->  | BP20: =IF($D20="","",VLOOKUP($D20,LouverData,46,FALSE)) -> 
B21: 11 | K21: 0 | L21: 0 | M21: =IF(OR($D21="",$G21=0,$H21=0),0,($K21-VLOOKUP($D21,LouverData,12,FALSE))) -> 0 | N21: =IF(OR($D21="",$G21=0,$H21=0),0,IF($D21="OHL-100WT",($K21-VLOOKUP("OHL-102",LouverData,12,FALSE)),0)) -> 0 | O21: =IF(OR($D21="",$G21=0,$H21=0),0,($L21-VLOOKUP($D21,LouverData,13,FALSE))) -> 0 | P21: =IF(OR($D21="",$G21=0,$H21=0),0,IF($D21="OHL-100WT",($L21-VLOOKUP("OHL-102",LouverData,13,FALSE)),0)) -> 0 | Q21: =IF(OR($D21="",$G21=0,$H21=0),0,IF(VLOOKUP($D21,LouverData,19,FALSE)=0,0,(IF(AND(NOT($D21="OVL-99"),NOT($D21="OHL-100WT")),(ROUNDUP($O21/VLOOKUP($D21,LouverData,19,FALSE),0)+1),0)))) -> 0 | R21: =IF(OR($D21="",$G21=0,$H21=0),0,IF(OR($D21="OVL-99",$D21="OHL-100WT"),(ROUNDUP($M21/VLOOKUP($D21,LouverData,19,FALSE),0)+1),0)) -> 0 | S21: =IF(OR($D21="",$G21=0,$H21=0),0,IF($D21="OHL-100WT",(ROUNDUP(P21/VLOOKUP("OHL-102",LouverData,19,FALSE),0)+1),0)) -> 0 | T21: =IF(OR($D21="",$G21=0,$H21=0),0,IF(VLOOKUP($D21,LouverData,22,FALSE)=0,0,(IF(AND(NOT($D21="OVL-99"),NOT($D21="OHL-100WT")),(IF($K21>500,ROUNDDOWN((($K21-100)/VLOOKUP($D21,LouverData,22,FALSE))+IF($D21="OHL-D",0,2),0),0)),0)))) -> 0 | U21: =IF(OR($D21="",$G21=0,$H21=0),0,IF(OR($D21="OVL-99",$D21="OHL-100WT"),(IF($L21>500,ROUNDDOWN((($L21-100)/VLOOKUP($D21,LouverData,22,FALSE))+2,0),0)),0)) -> 0 | V21: =IF(OR($D21="",$G21=0,$H21=0),0,IF($D21="OHL-100WT",(IF($K21>500,ROUNDDOWN((($K21-100)/VLOOKUP("OHL-102",LouverData,22,FALSE))+2,0),0)),0)) -> 0 | W21: 0 | X21: 0 | Y21: =IF(OR($D21="",$G21=0,$H21=0),0,(IF(AND(NOT($D21="OVL-99"),NOT($D21="OHL-100WT")),($M21-$T21*VLOOKUP($D21,LouverData,23,FALSE)),0))) -> 0 | Z21: =IF(OR($D21="",$G21=0,$H21=0),0,(IF(AND(NOT($D21="OVL-99"),NOT($D21="OHL-100WT")),(($Q21-2)*VLOOKUP($D21,LouverData,20,FALSE)),0))) -> 0 | AA21: =IF(OR($D21="",$G21=0,$H21=0,$Z21=0),0,($O21/VLOOKUP($D21,LouverData,19,FALSE))-($Z21/VLOOKUP($D21,LouverData,20,FALSE))) -> 0 | AB21: =IF(OR($D21="",$G21=0,$H21=0),0,(IF(OR($D21="OVL-99",$D21="OHL-100WT"),(($R21-2)*VLOOKUP($D21,LouverData,20,FALSE)),0))) -> 0 | AC21: =IF(OR($D21="",$G21=0,$H21=0),0,(IF(OR($D21="OVL-99",$D21="OHL-100WT"),($O21-$U21*VLOOKUP($D21,LouverData,23,FALSE)),0))) -> 0 | AD21: =IF(OR($D21="",$G21=0,$H21=0,$AB21=0),0,($M21/VLOOKUP($D21,LouverData,19,FALSE))-($AB21/VLOOKUP($D21,LouverData,20,FALSE))) -> 0 | AE21: 0 | AF21: =IF(OR($D21="",$G21=0,$H21=0),0,(IF(($AA21*VLOOKUP($D21,LouverData,19,FALSE))>=VLOOKUP($D21,LouverData,20,FALSE),$Z21+VLOOKUP($D21,LouverData,20,FALSE),$Z21+$AA21*VLOOKUP($D21,LouverData,19,FALSE)))) -> 0 | AG21: =IF(OR($D21="",$G21=0,$H21=0),0,(IF(($AD21*VLOOKUP($D21,LouverData,19,FALSE))>=VLOOKUP($D21,LouverData,20,FALSE),$AB21+VLOOKUP($D21,LouverData,20,FALSE),$AB21+$AD21*VLOOKUP($D21,LouverData,19,FALSE)))) -> 0 | AH21: 0 | AI21: 0 | AJ21: 0 | AK21: =IF(OR($D21="",$G21=0,$H21=0),0,($M21*$Q21*VLOOKUP($D21,LouverData,18,FALSE))+($M21*$S21*VLOOKUP("OHL-102",LouverData,18,FALSE))) -> 0 | AL21: =IF(OR($D21="",$G21=0,$H21=0),0,($O21*$R21*VLOOKUP($D21,LouverData,18,FALSE))) -> 0 | AM21: =IF(OR($D21="",$G21=0,$H21=0),0,(($O21*$T21*VLOOKUP($D21,LouverData,21,FALSE))+($P21*$V21*VLOOKUP("OHL-45",LouverData,21,FALSE))+$W21*VLOOKUP($D21,LouverData,24,FALSE)+$X21*VLOOKUP("OHL-102",LouverData,24,FALSE))) -> 0 | AN21: =IF(OR($D21="",$G21=0,$H21=0),0,($M21*$U21*VLOOKUP($D21,LouverData,21,FALSE))) -> 0 | AO21: =IF(OR($D21="",$G21=0,$H21=0),0,IF(VLOOKUP($D21,LouverData,19,FALSE)=0,0,($M21*(VLOOKUP($D21,LouverData,15,FALSE)+VLOOKUP($D21,LouverData,16,FALSE))+2*$L21*VLOOKUP($D21,LouverData,17,FALSE)))) -> 0 | AP21: =IF(OR($D21="",$G21=0,$H21=0),0,IF($D21="OHL-DR SINGLE",2*($L21*VLOOKUP($D21,LouverData,15,FALSE) + $M21*VLOOKUP($D21,LouverData,17,FALSE))+2*($O21*VLOOKUP($D21,LouverData,16,FALSE) + ($M21-VLOOKUP($D21,LouverData,14,FALSE))*VLOOKUP($D21,LouverData,15,FALSE)),0)) -> 0 | AQ21: =IF(OR($D21="",$G21=0,$H21=0),0,IF($D21="OHL-DR DOUBLE",2*($L21*VLOOKUP($D21,LouverData,15,FALSE) + $M21*VLOOKUP($D21,LouverData,17,FALSE))+4*($O21*VLOOKUP($D21,LouverData,16,FALSE) + ($M21-2*VLOOKUP($D21,LouverData,14,FALSE))*VLOOKUP($D21,LouverData,15,FALSE)),0)) -> 0 | AR21: =IF(OR($D21="",$G21=0,$H21=0),0,(($M21*$O21*VLOOKUP($D21,LouverData,25,FALSE))/1000000)) -> 0 | AS21: =IF(OR($D21="",$G21=0,$H21=0),0,(VLOOKUP($D21,LouverData,26,FALSE))) -> 0 | AT21: =IF(OR($D21="",$G21=0,$H21=0),"",IF(VLOOKUP($D21,LouverData,20,FALSE)=0,"N/A",$AI21/1000*$AJ21/1000)) ->  | AU21: =IF(OR($D21="",$G21=0,$H21=0),"",IF(VLOOKUP($D21,LouverData,20,FALSE)=0,"N/A",($AI21*$AJ21)/($G21*$H21))) ->  | AV21: =IF(OR($D21="",$F21="",$G21=0,$H21=0),"",IF(VLOOKUP($D21,LouverData,20,FALSE)=0,"N/A",$F21/($G21*$H21/1000000))) ->  | AW21: =IF(OR($D21="",$F21="",$G21=0,$H21=0),"",IF(VLOOKUP($D21,LouverData,20,FALSE)=0,"N/A",$F21/($AI21*$AJ21/1000000))) ->  | AX21: =IF(OR($D21="",$F21="",$G21=0,$H21=0,$I21=0),"",IF(VLOOKUP($D21,LouverData,27,FALSE)=0,"N/A",IF($I21="E",$AW21^2*(VLOOKUP($D21,LouverData,27,FALSE))+$AW21*(VLOOKUP($D21,LouverData,28,FALSE))+(VLOOKUP($D21,LouverData,29,FALSE)),$AW21^2*(VLOOKUP($D21,LouverData,30,FALSE))+$AW21*(VLOOKUP($D21,LouverData,31,FALSE))+(VLOOKUP($D21,LouverData,32,FALSE))))) ->  | AY21: =IF(OR($D21="",$F21="",$G21=0,$H21=0,$I21=0),"",IF(VLOOKUP($D21,LouverData,27,FALSE)=0,"N/A",$AV21*(SQRT(1.19/(2*$AX21))))) ->  | BA21: =IF($D21="","",VLOOKUP($D21,LouverData,6,FALSE)) ->  | BB21: =IF($D21="","",VLOOKUP($D21,LouverData,10,FALSE)) ->  | BC21: =IF($D21="","",VLOOKUP($D21,LouverData,33,FALSE)) ->  | BD21: =IF($D21="","",VLOOKUP($D21,LouverData,34,FALSE)) ->  | BE21: =IF($D21="","",VLOOKUP($D21,LouverData,35,FALSE)) ->  | BF21: =IF($D21="","",VLOOKUP($D21,LouverData,36,FALSE)) ->  | BG21: =IF($D21="","",VLOOKUP($D21,LouverData,37,FALSE)) ->  | BH21: =IF($D21="","",VLOOKUP($D21,LouverData,38,FALSE)) ->  | BI21: =IF($D21="","",VLOOKUP($D21,LouverData,39,FALSE)) ->  | BJ21: =IF($D21="","",VLOOKUP($D21,LouverData,40,FALSE)) ->  | BK21: =IF($D21="","",VLOOKUP($D21,LouverData,41,FALSE)) ->  | BL21: =IF($D21="","",VLOOKUP($D21,LouverData,42,FALSE)) ->  | BM21: =IF($D21="","",VLOOKUP($D21,LouverData,43,FALSE)) ->  | BN21: =IF($D21="","",VLOOKUP($D21,LouverData,44,FALSE)) ->  | BO21: =IF($D21="","",VLOOKUP($D21,LouverData,45,FALSE)) ->  | BP21: =IF($D21="","",VLOOKUP($D21,LouverData,46,FALSE)) -> 
B22: 12 | K22: 0 | L22: 0 | M22: =IF(OR($D22="",$G22=0,$H22=0),0,($K22-VLOOKUP($D22,LouverData,12,FALSE))) -> 0 | N22: =IF(OR($D22="",$G22=0,$H22=0),0,IF($D22="OHL-100WT",($K22-VLOOKUP("OHL-102",LouverData,12,FALSE)),0)) -> 0 | O22: =IF(OR($D22="",$G22=0,$H22=0),0,($L22-VLOOKUP($D22,LouverData,13,FALSE))) -> 0 | P22: =IF(OR($D22="",$G22=0,$H22=0),0,IF($D22="OHL-100WT",($L22-VLOOKUP("OHL-102",LouverData,13,FALSE)),0)) -> 0 | Q22: =IF(OR($D22="",$G22=0,$H22=0),0,IF(VLOOKUP($D22,LouverData,19,FALSE)=0,0,(IF(AND(NOT($D22="OVL-99"),NOT($D22="OHL-100WT")),(ROUNDUP($O22/VLOOKUP($D22,LouverData,19,FALSE),0)+1),0)))) -> 0 | R22: =IF(OR($D22="",$G22=0,$H22=0),0,IF(OR($D22="OVL-99",$D22="OHL-100WT"),(ROUNDUP($M22/VLOOKUP($D22,LouverData,19,FALSE),0)+1),0)) -> 0 | S22: =IF(OR($D22="",$G22=0,$H22=0),0,IF($D22="OHL-100WT",(ROUNDUP(P22/VLOOKUP("OHL-102",LouverData,19,FALSE),0)+1),0)) -> 0 | T22: =IF(OR($D22="",$G22=0,$H22=0),0,IF(VLOOKUP($D22,LouverData,22,FALSE)=0,0,(IF(AND(NOT($D22="OVL-99"),NOT($D22="OHL-100WT")),(IF($K22>500,ROUNDDOWN((($K22-100)/VLOOKUP($D22,LouverData,22,FALSE))+IF($D22="OHL-D",0,2),0),0)),0)))) -> 0 | U22: =IF(OR($D22="",$G22=0,$H22=0),0,IF(OR($D22="OVL-99",$D22="OHL-100WT"),(IF($L22>500,ROUNDDOWN((($L22-100)/VLOOKUP($D22,LouverData,22,FALSE))+2,0),0)),0)) -> 0 | V22: =IF(OR($D22="",$G22=0,$H22=0),0,IF($D22="OHL-100WT",(IF($K22>500,ROUNDDOWN((($K22-100)/VLOOKUP("OHL-102",LouverData,22,FALSE))+2,0),0)),0)) -> 0 | W22: 0 | X22: 0 | Y22: =IF(OR($D22="",$G22=0,$H22=0),0,(IF(AND(NOT($D22="OVL-99"),NOT($D22="OHL-100WT")),($M22-$T22*VLOOKUP($D22,LouverData,23,FALSE)),0))) -> 0 | Z22: =IF(OR($D22="",$G22=0,$H22=0),0,(IF(AND(NOT($D22="OVL-99"),NOT($D22="OHL-100WT")),(($Q22-2)*VLOOKUP($D22,LouverData,20,FALSE)),0))) -> 0 | AA22: =IF(OR($D22="",$G22=0,$H22=0,$Z22=0),0,($O22/VLOOKUP($D22,LouverData,19,FALSE))-($Z22/VLOOKUP($D22,LouverData,20,FALSE))) -> 0 | AB22: =IF(OR($D22="",$G22=0,$H22=0),0,(IF(OR($D22="OVL-99",$D22="OHL-100WT"),(($R22-2)*VLOOKUP($D22,LouverData,20,FALSE)),0))) -> 0 | AC22: =IF(OR($D22="",$G22=0,$H22=0),0,(IF(OR($D22="OVL-99",$D22="OHL-100WT"),($O22-$U22*VLOOKUP($D22,LouverData,23,FALSE)),0))) -> 0 | AD22: =IF(OR($D22="",$G22=0,$H22=0,$AB22=0),0,($M22/VLOOKUP($D22,LouverData,19,FALSE))-($AB22/VLOOKUP($D22,LouverData,20,FALSE))) -> 0 | AE22: 0 | AF22: =IF(OR($D22="",$G22=0,$H22=0),0,(IF(($AA22*VLOOKUP($D22,LouverData,19,FALSE))>=VLOOKUP($D22,LouverData,20,FALSE),$Z22+VLOOKUP($D22,LouverData,20,FALSE),$Z22+$AA22*VLOOKUP($D22,LouverData,19,FALSE)))) -> 0 | AG22: =IF(OR($D22="",$G22=0,$H22=0),0,(IF(($AD22*VLOOKUP($D22,LouverData,19,FALSE))>=VLOOKUP($D22,LouverData,20,FALSE),$AB22+VLOOKUP($D22,LouverData,20,FALSE),$AB22+$AD22*VLOOKUP($D22,LouverData,19,FALSE)))) -> 0 | AH22: 0 | AI22: 0 | AJ22: 0 | AK22: =IF(OR($D22="",$G22=0,$H22=0),0,($M22*$Q22*VLOOKUP($D22,LouverData,18,FALSE))+($M22*$S22*VLOOKUP("OHL-102",LouverData,18,FALSE))) -> 0 | AL22: =IF(OR($D22="",$G22=0,$H22=0),0,($O22*$R22*VLOOKUP($D22,LouverData,18,FALSE))) -> 0 | AM22: =IF(OR($D22="",$G22=0,$H22=0),0,(($O22*$T22*VLOOKUP($D22,LouverData,21,FALSE))+($P22*$V22*VLOOKUP("OHL-45",LouverData,21,FALSE))+$W22*VLOOKUP($D22,LouverData,24,FALSE)+$X22*VLOOKUP("OHL-102",LouverData,24,FALSE))) -> 0 | AN22: =IF(OR($D22="",$G22=0,$H22=0),0,($M22*$U22*VLOOKUP($D22,LouverData,21,FALSE))) -> 0 | AO22: =IF(OR($D22="",$G22=0,$H22=0),0,IF(VLOOKUP($D22,LouverData,19,FALSE)=0,0,($M22*(VLOOKUP($D22,LouverData,15,FALSE)+VLOOKUP($D22,LouverData,16,FALSE))+2*$L22*VLOOKUP($D22,LouverData,17,FALSE)))) -> 0 | AP22: =IF(OR($D22="",$G22=0,$H22=0),0,IF($D22="OHL-DR SINGLE",2*($L22*VLOOKUP($D22,LouverData,15,FALSE) + $M22*VLOOKUP($D22,LouverData,17,FALSE))+2*($O22*VLOOKUP($D22,LouverData,16,FALSE) + ($M22-VLOOKUP($D22,LouverData,14,FALSE))*VLOOKUP($D22,LouverData,15,FALSE)),0)) -> 0 | AQ22: =IF(OR($D22="",$G22=0,$H22=0),0,IF($D22="OHL-DR DOUBLE",2*($L22*VLOOKUP($D22,LouverData,15,FALSE) + $M22*VLOOKUP($D22,LouverData,17,FALSE))+4*($O22*VLOOKUP($D22,LouverData,16,FALSE) + ($M22-2*VLOOKUP($D22,LouverData,14,FALSE))*VLOOKUP($D22,LouverData,15,FALSE)),0)) -> 0 | AR22: =IF(OR($D22="",$G22=0,$H22=0),0,(($M22*$O22*VLOOKUP($D22,LouverData,25,FALSE))/1000000)) -> 0 | AS22: =IF(OR($D22="",$G22=0,$H22=0),0,(VLOOKUP($D22,LouverData,26,FALSE))) -> 0 | AT22: =IF(OR($D22="",$G22=0,$H22=0),"",IF(VLOOKUP($D22,LouverData,20,FALSE)=0,"N/A",$AI22/1000*$AJ22/1000)) ->  | AU22: =IF(OR($D22="",$G22=0,$H22=0),"",IF(VLOOKUP($D22,LouverData,20,FALSE)=0,"N/A",($AI22*$AJ22)/($G22*$H22))) ->  | AV22: =IF(OR($D22="",$F22="",$G22=0,$H22=0),"",IF(VLOOKUP($D22,LouverData,20,FALSE)=0,"N/A",$F22/($G22*$H22/1000000))) ->  | AW22: =IF(OR($D22="",$F22="",$G22=0,$H22=0),"",IF(VLOOKUP($D22,LouverData,20,FALSE)=0,"N/A",$F22/($AI22*$AJ22/1000000))) ->  | AX22: =IF(OR($D22="",$F22="",$G22=0,$H22=0,$I22=0),"",IF(VLOOKUP($D22,LouverData,27,FALSE)=0,"N/A",IF($I22="E",$AW22^2*(VLOOKUP($D22,LouverData,27,FALSE))+$AW22*(VLOOKUP($D22,LouverData,28,FALSE))+(VLOOKUP($D22,LouverData,29,FALSE)),$AW22^2*(VLOOKUP($D22,LouverData,30,FALSE))+$AW22*(VLOOKUP($D22,LouverData,31,FALSE))+(VLOOKUP($D22,LouverData,32,FALSE))))) ->  | AY22: =IF(OR($D22="",$F22="",$G22=0,$H22=0,$I22=0),"",IF(VLOOKUP($D22,LouverData,27,FALSE)=0,"N/A",$AV22*(SQRT(1.19/(2*$AX22))))) ->  | BA22: =IF($D22="","",VLOOKUP($D22,LouverData,6,FALSE)) ->  | BB22: =IF($D22="","",VLOOKUP($D22,LouverData,10,FALSE)) ->  | BC22: =IF($D22="","",VLOOKUP($D22,LouverData,33,FALSE)) ->  | BD22: =IF($D22="","",VLOOKUP($D22,LouverData,34,FALSE)) ->  | BE22: =IF($D22="","",VLOOKUP($D22,LouverData,35,FALSE)) ->  | BF22: =IF($D22="","",VLOOKUP($D22,LouverData,36,FALSE)) ->  | BG22: =IF($D22="","",VLOOKUP($D22,LouverData,37,FALSE)) ->  | BH22: =IF($D22="","",VLOOKUP($D22,LouverData,38,FALSE)) ->  | BI22: =IF($D22="","",VLOOKUP($D22,LouverData,39,FALSE)) ->  | BJ22: =IF($D22="","",VLOOKUP($D22,LouverData,40,FALSE)) ->  | BK22: =IF($D22="","",VLOOKUP($D22,LouverData,41,FALSE)) ->  | BL22: =IF($D22="","",VLOOKUP($D22,LouverData,42,FALSE)) ->  | BM22: =IF($D22="","",VLOOKUP($D22,LouverData,43,FALSE)) ->  | BN22: =IF($D22="","",VLOOKUP($D22,LouverData,44,FALSE)) ->  | BO22: =IF($D22="","",VLOOKUP($D22,LouverData,45,FALSE)) ->  | BP22: =IF($D22="","",VLOOKUP($D22,LouverData,46,FALSE)) -> 
B23: 13 | K23: 0 | L23: 0 | M23: =IF(OR($D23="",$G23=0,$H23=0),0,($K23-VLOOKUP($D23,LouverData,12,FALSE))) -> 0 | N23: =IF(OR($D23="",$G23=0,$H23=0),0,IF($D23="OHL-100WT",($K23-VLOOKUP("OHL-102",LouverData,12,FALSE)),0)) -> 0 | O23: =IF(OR($D23="",$G23=0,$H23=0),0,($L23-VLOOKUP($D23,LouverData,13,FALSE))) -> 0 | P23: =IF(OR($D23="",$G23=0,$H23=0),0,IF($D23="OHL-100WT",($L23-VLOOKUP("OHL-102",LouverData,13,FALSE)),0)) -> 0 | Q23: =IF(OR($D23="",$G23=0,$H23=0),0,IF(VLOOKUP($D23,LouverData,19,FALSE)=0,0,(IF(AND(NOT($D23="OVL-99"),NOT($D23="OHL-100WT")),(ROUNDUP($O23/VLOOKUP($D23,LouverData,19,FALSE),0)+1),0)))) -> 0 | R23: =IF(OR($D23="",$G23=0,$H23=0),0,IF(OR($D23="OVL-99",$D23="OHL-100WT"),(ROUNDUP($M23/VLOOKUP($D23,LouverData,19,FALSE),0)+1),0)) -> 0 | S23: =IF(OR($D23="",$G23=0,$H23=0),0,IF($D23="OHL-100WT",(ROUNDUP(P23/VLOOKUP("OHL-102",LouverData,19,FALSE),0)+1),0)) -> 0 | T23: =IF(OR($D23="",$G23=0,$H23=0),0,IF(VLOOKUP($D23,LouverData,22,FALSE)=0,0,(IF(AND(NOT($D23="OVL-99"),NOT($D23="OHL-100WT")),(IF($K23>500,ROUNDDOWN((($K23-100)/VLOOKUP($D23,LouverData,22,FALSE))+IF($D23="OHL-D",0,2),0),0)),0)))) -> 0 | U23: =IF(OR($D23="",$G23=0,$H23=0),0,IF(OR($D23="OVL-99",$D23="OHL-100WT"),(IF($L23>500,ROUNDDOWN((($L23-100)/VLOOKUP($D23,LouverData,22,FALSE))+2,0),0)),0)) -> 0 | V23: =IF(OR($D23="",$G23=0,$H23=0),0,IF($D23="OHL-100WT",(IF($K23>500,ROUNDDOWN((($K23-100)/VLOOKUP("OHL-102",LouverData,22,FALSE))+2,0),0)),0)) -> 0 | W23: 0 | X23: 0 | Y23: =IF(OR($D23="",$G23=0,$H23=0),0,(IF(AND(NOT($D23="OVL-99"),NOT($D23="OHL-100WT")),($M23-$T23*VLOOKUP($D23,LouverData,23,FALSE)),0))) -> 0 | Z23: =IF(OR($D23="",$G23=0,$H23=0),0,(IF(AND(NOT($D23="OVL-99"),NOT($D23="OHL-100WT")),(($Q23-2)*VLOOKUP($D23,LouverData,20,FALSE)),0))) -> 0 | AA23: =IF(OR($D23="",$G23=0,$H23=0,$Z23=0),0,($O23/VLOOKUP($D23,LouverData,19,FALSE))-($Z23/VLOOKUP($D23,LouverData,20,FALSE))) -> 0 | AB23: =IF(OR($D23="",$G23=0,$H23=0),0,(IF(OR($D23="OVL-99",$D23="OHL-100WT"),(($R23-2)*VLOOKUP($D23,LouverData,20,FALSE)),0))) -> 0 | AC23: =IF(OR($D23="",$G23=0,$H23=0),0,(IF(OR($D23="OVL-99",$D23="OHL-100WT"),($O23-$U23*VLOOKUP($D23,LouverData,23,FALSE)),0))) -> 0 | AD23: =IF(OR($D23="",$G23=0,$H23=0,$AB23=0),0,($M23/VLOOKUP($D23,LouverData,19,FALSE))-($AB23/VLOOKUP($D23,LouverData,20,FALSE))) -> 0 | AE23: 0 | AF23: =IF(OR($D23="",$G23=0,$H23=0),0,(IF(($AA23*VLOOKUP($D23,LouverData,19,FALSE))>=VLOOKUP($D23,LouverData,20,FALSE),$Z23+VLOOKUP($D23,LouverData,20,FALSE),$Z23+$AA23*VLOOKUP($D23,LouverData,19,FALSE)))) -> 0 | AG23: =IF(OR($D23="",$G23=0,$H23=0),0,(IF(($AD23*VLOOKUP($D23,LouverData,19,FALSE))>=VLOOKUP($D23,LouverData,20,FALSE),$AB23+VLOOKUP($D23,LouverData,20,FALSE),$AB23+$AD23*VLOOKUP($D23,LouverData,19,FALSE)))) -> 0 | AH23: 0 | AI23: 0 | AJ23: 0 | AK23: =IF(OR($D23="",$G23=0,$H23=0),0,($M23*$Q23*VLOOKUP($D23,LouverData,18,FALSE))+($M23*$S23*VLOOKUP("OHL-102",LouverData,18,FALSE))) -> 0 | AL23: =IF(OR($D23="",$G23=0,$H23=0),0,($O23*$R23*VLOOKUP($D23,LouverData,18,FALSE))) -> 0 | AM23: =IF(OR($D23="",$G23=0,$H23=0),0,(($O23*$T23*VLOOKUP($D23,LouverData,21,FALSE))+($P23*$V23*VLOOKUP("OHL-45",LouverData,21,FALSE))+$W23*VLOOKUP($D23,LouverData,24,FALSE)+$X23*VLOOKUP("OHL-102",LouverData,24,FALSE))) -> 0 | AN23: =IF(OR($D23="",$G23=0,$H23=0),0,($M23*$U23*VLOOKUP($D23,LouverData,21,FALSE))) -> 0 | AO23: =IF(OR($D23="",$G23=0,$H23=0),0,IF(VLOOKUP($D23,LouverData,19,FALSE)=0,0,($M23*(VLOOKUP($D23,LouverData,15,FALSE)+VLOOKUP($D23,LouverData,16,FALSE))+2*$L23*VLOOKUP($D23,LouverData,17,FALSE)))) -> 0 | AP23: =IF(OR($D23="",$G23=0,$H23=0),0,IF($D23="OHL-DR SINGLE",2*($L23*VLOOKUP($D23,LouverData,15,FALSE) + $M23*VLOOKUP($D23,LouverData,17,FALSE))+2*($O23*VLOOKUP($D23,LouverData,16,FALSE) + ($M23-VLOOKUP($D23,LouverData,14,FALSE))*VLOOKUP($D23,LouverData,15,FALSE)),0)) -> 0 | AQ23: =IF(OR($D23="",$G23=0,$H23=0),0,IF($D23="OHL-DR DOUBLE",2*($L23*VLOOKUP($D23,LouverData,15,FALSE) + $M23*VLOOKUP($D23,LouverData,17,FALSE))+4*($O23*VLOOKUP($D23,LouverData,16,FALSE) + ($M23-2*VLOOKUP($D23,LouverData,14,FALSE))*VLOOKUP($D23,LouverData,15,FALSE)),0)) -> 0 | AR23: =IF(OR($D23="",$G23=0,$H23=0),0,(($M23*$O23*VLOOKUP($D23,LouverData,25,FALSE))/1000000)) -> 0 | AS23: =IF(OR($D23="",$G23=0,$H23=0),0,(VLOOKUP($D23,LouverData,26,FALSE))) -> 0 | AT23: =IF(OR($D23="",$G23=0,$H23=0),"",IF(VLOOKUP($D23,LouverData,20,FALSE)=0,"N/A",$AI23/1000*$AJ23/1000)) ->  | AU23: =IF(OR($D23="",$G23=0,$H23=0),"",IF(VLOOKUP($D23,LouverData,20,FALSE)=0,"N/A",($AI23*$AJ23)/($G23*$H23))) ->  | AV23: =IF(OR($D23="",$F23="",$G23=0,$H23=0),"",IF(VLOOKUP($D23,LouverData,20,FALSE)=0,"N/A",$F23/($G23*$H23/1000000))) ->  | AW23: =IF(OR($D23="",$F23="",$G23=0,$H23=0),"",IF(VLOOKUP($D23,LouverData,20,FALSE)=0,"N/A",$F23/($AI23*$AJ23/1000000))) ->  | AX23: =IF(OR($D23="",$F23="",$G23=0,$H23=0,$I23=0),"",IF(VLOOKUP($D23,LouverData,27,FALSE)=0,"N/A",IF($I23="E",$AW23^2*(VLOOKUP($D23,LouverData,27,FALSE))+$AW23*(VLOOKUP($D23,LouverData,28,FALSE))+(VLOOKUP($D23,LouverData,29,FALSE)),$AW23^2*(VLOOKUP($D23,LouverData,30,FALSE))+$AW23*(VLOOKUP($D23,LouverData,31,FALSE))+(VLOOKUP($D23,LouverData,32,FALSE))))) ->  | AY23: =IF(OR($D23="",$F23="",$G23=0,$H23=0,$I23=0),"",IF(VLOOKUP($D23,LouverData,27,FALSE)=0,"N/A",$AV23*(SQRT(1.19/(2*$AX23))))) ->  | BA23: =IF($D23="","",VLOOKUP($D23,LouverData,6,FALSE)) ->  | BB23: =IF($D23="","",VLOOKUP($D23,LouverData,10,FALSE)) ->  | BC23: =IF($D23="","",VLOOKUP($D23,LouverData,33,FALSE)) ->  | BD23: =IF($D23="","",VLOOKUP($D23,LouverData,34,FALSE)) ->  | BE23: =IF($D23="","",VLOOKUP($D23,LouverData,35,FALSE)) ->  | BF23: =IF($D23="","",VLOOKUP($D23,LouverData,36,FALSE)) ->  | BG23: =IF($D23="","",VLOOKUP($D23,LouverData,37,FALSE)) ->  | BH23: =IF($D23="","",VLOOKUP($D23,LouverData,38,FALSE)) ->  | BI23: =IF($D23="","",VLOOKUP($D23,LouverData,39,FALSE)) ->  | BJ23: =IF($D23="","",VLOOKUP($D23,LouverData,40,FALSE)) ->  | BK23: =IF($D23="","",VLOOKUP($D23,LouverData,41,FALSE)) ->  | BL23: =IF($D23="","",VLOOKUP($D23,LouverData,42,FALSE)) ->  | BM23: =IF($D23="","",VLOOKUP($D23,LouverData,43,FALSE)) ->  | BN23: =IF($D23="","",VLOOKUP($D23,LouverData,44,FALSE)) ->  | BO23: =IF($D23="","",VLOOKUP($D23,LouverData,45,FALSE)) ->  | BP23: =IF($D23="","",VLOOKUP($D23,LouverData,46,FALSE)) -> 
B24: 14 | K24: 0 | L24: 0 | M24: =IF(OR($D24="",$G24=0,$H24=0),0,($K24-VLOOKUP($D24,LouverData,12,FALSE))) -> 0 | N24: =IF(OR($D24="",$G24=0,$H24=0),0,IF($D24="OHL-100WT",($K24-VLOOKUP("OHL-102",LouverData,12,FALSE)),0)) -> 0 | O24: =IF(OR($D24="",$G24=0,$H24=0),0,($L24-VLOOKUP($D24,LouverData,13,FALSE))) -> 0 | P24: =IF(OR($D24="",$G24=0,$H24=0),0,IF($D24="OHL-100WT",($L24-VLOOKUP("OHL-102",LouverData,13,FALSE)),0)) -> 0 | Q24: =IF(OR($D24="",$G24=0,$H24=0),0,IF(VLOOKUP($D24,LouverData,19,FALSE)=0,0,(IF(AND(NOT($D24="OVL-99"),NOT($D24="OHL-100WT")),(ROUNDUP($O24/VLOOKUP($D24,LouverData,19,FALSE),0)+1),0)))) -> 0 | R24: =IF(OR($D24="",$G24=0,$H24=0),0,IF(OR($D24="OVL-99",$D24="OHL-100WT"),(ROUNDUP($M24/VLOOKUP($D24,LouverData,19,FALSE),0)+1),0)) -> 0 | S24: =IF(OR($D24="",$G24=0,$H24=0),0,IF($D24="OHL-100WT",(ROUNDUP(P24/VLOOKUP("OHL-102",LouverData,19,FALSE),0)+1),0)) -> 0 | T24: =IF(OR($D24="",$G24=0,$H24=0),0,IF(VLOOKUP($D24,LouverData,22,FALSE)=0,0,(IF(AND(NOT($D24="OVL-99"),NOT($D24="OHL-100WT")),(IF($K24>500,ROUNDDOWN((($K24-100)/VLOOKUP($D24,LouverData,22,FALSE))+IF($D24="OHL-D",0,2),0),0)),0)))) -> 0 | U24: =IF(OR($D24="",$G24=0,$H24=0),0,IF(OR($D24="OVL-99",$D24="OHL-100WT"),(IF($L24>500,ROUNDDOWN((($L24-100)/VLOOKUP($D24,LouverData,22,FALSE))+2,0),0)),0)) -> 0 | V24: =IF(OR($D24="",$G24=0,$H24=0),0,IF($D24="OHL-100WT",(IF($K24>500,ROUNDDOWN((($K24-100)/VLOOKUP("OHL-102",LouverData,22,FALSE))+2,0),0)),0)) -> 0 | W24: 0 | X24: 0 | Y24: =IF(OR($D24="",$G24=0,$H24=0),0,(IF(AND(NOT($D24="OVL-99"),NOT($D24="OHL-100WT")),($M24-$T24*VLOOKUP($D24,LouverData,23,FALSE)),0))) -> 0 | Z24: =IF(OR($D24="",$G24=0,$H24=0),0,(IF(AND(NOT($D24="OVL-99"),NOT($D24="OHL-100WT")),(($Q24-2)*VLOOKUP($D24,LouverData,20,FALSE)),0))) -> 0 | AA24: =IF(OR($D24="",$G24=0,$H24=0,$Z24=0),0,($O24/VLOOKUP($D24,LouverData,19,FALSE))-($Z24/VLOOKUP($D24,LouverData,20,FALSE))) -> 0 | AB24: =IF(OR($D24="",$G24=0,$H24=0),0,(IF(OR($D24="OVL-99",$D24="OHL-100WT"),(($R24-2)*VLOOKUP($D24,LouverData,20,FALSE)),0))) -> 0 | AC24: =IF(OR($D24="",$G24=0,$H24=0),0,(IF(OR($D24="OVL-99",$D24="OHL-100WT"),($O24-$U24*VLOOKUP($D24,LouverData,23,FALSE)),0))) -> 0 | AD24: =IF(OR($D24="",$G24=0,$H24=0,$AB24=0),0,($M24/VLOOKUP($D24,LouverData,19,FALSE))-($AB24/VLOOKUP($D24,LouverData,20,FALSE))) -> 0 | AE24: 0 | AF24: =IF(OR($D24="",$G24=0,$H24=0),0,(IF(($AA24*VLOOKUP($D24,LouverData,19,FALSE))>=VLOOKUP($D24,LouverData,20,FALSE),$Z24+VLOOKUP($D24,LouverData,20,FALSE),$Z24+$AA24*VLOOKUP($D24,LouverData,19,FALSE)))) -> 0 | AG24: =IF(OR($D24="",$G24=0,$H24=0),0,(IF(($AD24*VLOOKUP($D24,LouverData,19,FALSE))>=VLOOKUP($D24,LouverData,20,FALSE),$AB24+VLOOKUP($D24,LouverData,20,FALSE),$AB24+$AD24*VLOOKUP($D24,LouverData,19,FALSE)))) -> 0 | AH24: 0 | AI24: 0 | AJ24: 0 | AK24: =IF(OR($D24="",$G24=0,$H24=0),0,($M24*$Q24*VLOOKUP($D24,LouverData,18,FALSE))+($M24*$S24*VLOOKUP("OHL-102",LouverData,18,FALSE))) -> 0 | AL24: =IF(OR($D24="",$G24=0,$H24=0),0,($O24*$R24*VLOOKUP($D24,LouverData,18,FALSE))) -> 0 | AM24: =IF(OR($D24="",$G24=0,$H24=0),0,(($O24*$T24*VLOOKUP($D24,LouverData,21,FALSE))+($P24*$V24*VLOOKUP("OHL-45",LouverData,21,FALSE))+$W24*VLOOKUP($D24,LouverData,24,FALSE)+$X24*VLOOKUP("OHL-102",LouverData,24,FALSE))) -> 0 | AN24: =IF(OR($D24="",$G24=0,$H24=0),0,($M24*$U24*VLOOKUP($D24,LouverData,21,FALSE))) -> 0 | AO24: =IF(OR($D24="",$G24=0,$H24=0),0,IF(VLOOKUP($D24,LouverData,19,FALSE)=0,0,($M24*(VLOOKUP($D24,LouverData,15,FALSE)+VLOOKUP($D24,LouverData,16,FALSE))+2*$L24*VLOOKUP($D24,LouverData,17,FALSE)))) -> 0 | AP24: =IF(OR($D24="",$G24=0,$H24=0),0,IF($D24="OHL-DR SINGLE",2*($L24*VLOOKUP($D24,LouverData,15,FALSE) + $M24*VLOOKUP($D24,LouverData,17,FALSE))+2*($O24*VLOOKUP($D24,LouverData,16,FALSE) + ($M24-VLOOKUP($D24,LouverData,14,FALSE))*VLOOKUP($D24,LouverData,15,FALSE)),0)) -> 0 | AQ24: =IF(OR($D24="",$G24=0,$H24=0),0,IF($D24="OHL-DR DOUBLE",2*($L24*VLOOKUP($D24,LouverData,15,FALSE) + $M24*VLOOKUP($D24,LouverData,17,FALSE))+4*($O24*VLOOKUP($D24,LouverData,16,FALSE) + ($M24-2*VLOOKUP($D24,LouverData,14,FALSE))*VLOOKUP($D24,LouverData,15,FALSE)),0)) -> 0 | AR24: =IF(OR($D24="",$G24=0,$H24=0),0,(($M24*$O24*VLOOKUP($D24,LouverData,25,FALSE))/1000000)) -> 0 | AS24: =IF(OR($D24="",$G24=0,$H24=0),0,(VLOOKUP($D24,LouverData,26,FALSE))) -> 0 | AT24: =IF(OR($D24="",$G24=0,$H24=0),"",IF(VLOOKUP($D24,LouverData,20,FALSE)=0,"N/A",$AI24/1000*$AJ24/1000)) ->  | AU24: =IF(OR($D24="",$G24=0,$H24=0),"",IF(VLOOKUP($D24,LouverData,20,FALSE)=0,"N/A",($AI24*$AJ24)/($G24*$H24))) ->  | AV24: =IF(OR($D24="",$F24="",$G24=0,$H24=0),"",IF(VLOOKUP($D24,LouverData,20,FALSE)=0,"N/A",$F24/($G24*$H24/1000000))) ->  | AW24: =IF(OR($D24="",$F24="",$G24=0,$H24=0),"",IF(VLOOKUP($D24,LouverData,20,FALSE)=0,"N/A",$F24/($AI24*$AJ24/1000000))) ->  | AX24: =IF(OR($D24="",$F24="",$G24=0,$H24=0,$I24=0),"",IF(VLOOKUP($D24,LouverData,27,FALSE)=0,"N/A",IF($I24="E",$AW24^2*(VLOOKUP($D24,LouverData,27,FALSE))+$AW24*(VLOOKUP($D24,LouverData,28,FALSE))+(VLOOKUP($D24,LouverData,29,FALSE)),$AW24^2*(VLOOKUP($D24,LouverData,30,FALSE))+$AW24*(VLOOKUP($D24,LouverData,31,FALSE))+(VLOOKUP($D24,LouverData,32,FALSE))))) ->  | AY24: =IF(OR($D24="",$F24="",$G24=0,$H24=0,$I24=0),"",IF(VLOOKUP($D24,LouverData,27,FALSE)=0,"N/A",$AV24*(SQRT(1.19/(2*$AX24))))) ->  | BA24: =IF($D24="","",VLOOKUP($D24,LouverData,6,FALSE)) ->  | BB24: =IF($D24="","",VLOOKUP($D24,LouverData,10,FALSE)) ->  | BC24: =IF($D24="","",VLOOKUP($D24,LouverData,33,FALSE)) ->  | BD24: =IF($D24="","",VLOOKUP($D24,LouverData,34,FALSE)) ->  | BE24: =IF($D24="","",VLOOKUP($D24,LouverData,35,FALSE)) ->  | BF24: =IF($D24="","",VLOOKUP($D24,LouverData,36,FALSE)) ->  | BG24: =IF($D24="","",VLOOKUP($D24,LouverData,37,FALSE)) ->  | BH24: =IF($D24="","",VLOOKUP($D24,LouverData,38,FALSE)) ->  | BI24: =IF($D24="","",VLOOKUP($D24,LouverData,39,FALSE)) ->  | BJ24: =IF($D24="","",VLOOKUP($D24,LouverData,40,FALSE)) ->  | BK24: =IF($D24="","",VLOOKUP($D24,LouverData,41,FALSE)) ->  | BL24: =IF($D24="","",VLOOKUP($D24,LouverData,42,FALSE)) ->  | BM24: =IF($D24="","",VLOOKUP($D24,LouverData,43,FALSE)) ->  | BN24: =IF($D24="","",VLOOKUP($D24,LouverData,44,FALSE)) ->  | BO24: =IF($D24="","",VLOOKUP($D24,LouverData,45,FALSE)) ->  | BP24: =IF($D24="","",VLOOKUP($D24,LouverData,46,FALSE)) -> 
B25: 15 | F25: =IF($E25=0,"",$E25/1000) ->  | K25: 0 | L25: 0 | M25: =IF(OR($D25="",$G25=0,$H25=0),0,($K25-VLOOKUP($D25,LouverData,12,FALSE))) -> 0 | N25: =IF(OR($D25="",$G25=0,$H25=0),0,IF($D25="OHL-100WT",($K25-VLOOKUP("OHL-102",LouverData,12,FALSE)),0)) -> 0 | O25: =IF(OR($D25="",$G25=0,$H25=0),0,($L25-VLOOKUP($D25,LouverData,13,FALSE))) -> 0 | P25: =IF(OR($D25="",$G25=0,$H25=0),0,IF($D25="OHL-100WT",($L25-VLOOKUP("OHL-102",LouverData,13,FALSE)),0)) -> 0 | Q25: =IF(OR($D25="",$G25=0,$H25=0),0,IF(VLOOKUP($D25,LouverData,19,FALSE)=0,0,(IF(AND(NOT($D25="OVL-99"),NOT($D25="OHL-100WT")),(ROUNDUP($O25/VLOOKUP($D25,LouverData,19,FALSE),0)+1),0)))) -> 0 | R25: =IF(OR($D25="",$G25=0,$H25=0),0,IF(OR($D25="OVL-99",$D25="OHL-100WT"),(ROUNDUP($M25/VLOOKUP($D25,LouverData,19,FALSE),0)+1),0)) -> 0 | S25: =IF(OR($D25="",$G25=0,$H25=0),0,IF($D25="OHL-100WT",(ROUNDUP(P25/VLOOKUP("OHL-102",LouverData,19,FALSE),0)+1),0)) -> 0 | T25: =IF(OR($D25="",$G25=0,$H25=0),0,IF(VLOOKUP($D25,LouverData,22,FALSE)=0,0,(IF(AND(NOT($D25="OVL-99"),NOT($D25="OHL-100WT")),(IF($K25>500,ROUNDDOWN((($K25-100)/VLOOKUP($D25,LouverData,22,FALSE))+IF($D25="OHL-D",0,2),0),0)),0)))) -> 0 | U25: =IF(OR($D25="",$G25=0,$H25=0),0,IF(OR($D25="OVL-99",$D25="OHL-100WT"),(IF($L25>500,ROUNDDOWN((($L25-100)/VLOOKUP($D25,LouverData,22,FALSE))+2,0),0)),0)) -> 0 | V25: =IF(OR($D25="",$G25=0,$H25=0),0,IF($D25="OHL-100WT",(IF($K25>500,ROUNDDOWN((($K25-100)/VLOOKUP("OHL-102",LouverData,22,FALSE))+2,0),0)),0)) -> 0 | W25: 0 | X25: 0 | Y25: =IF(OR($D25="",$G25=0,$H25=0),0,(IF(AND(NOT($D25="OVL-99"),NOT($D25="OHL-100WT")),($M25-$T25*VLOOKUP($D25,LouverData,23,FALSE)),0))) -> 0 | Z25: =IF(OR($D25="",$G25=0,$H25=0),0,(IF(AND(NOT($D25="OVL-99"),NOT($D25="OHL-100WT")),(($Q25-2)*VLOOKUP($D25,LouverData,20,FALSE)),0))) -> 0 | AA25: =IF(OR($D25="",$G25=0,$H25=0,$Z25=0),0,($O25/VLOOKUP($D25,LouverData,19,FALSE))-($Z25/VLOOKUP($D25,LouverData,20,FALSE))) -> 0 | AB25: =IF(OR($D25="",$G25=0,$H25=0),0,(IF(OR($D25="OVL-99",$D25="OHL-100WT"),(($R25-2)*VLOOKUP($D25,LouverData,20,FALSE)),0))) -> 0 | AC25: =IF(OR($D25="",$G25=0,$H25=0),0,(IF(OR($D25="OVL-99",$D25="OHL-100WT"),($O25-$U25*VLOOKUP($D25,LouverData,23,FALSE)),0))) -> 0 | AD25: =IF(OR($D25="",$G25=0,$H25=0,$AB25=0),0,($M25/VLOOKUP($D25,LouverData,19,FALSE))-($AB25/VLOOKUP($D25,LouverData,20,FALSE))) -> 0 | AE25: 0 | AF25: =IF(OR($D25="",$G25=0,$H25=0),0,(IF(($AA25*VLOOKUP($D25,LouverData,19,FALSE))>=VLOOKUP($D25,LouverData,20,FALSE),$Z25+VLOOKUP($D25,LouverData,20,FALSE),$Z25+$AA25*VLOOKUP($D25,LouverData,19,FALSE)))) -> 0 | AG25: =IF(OR($D25="",$G25=0,$H25=0),0,(IF(($AD25*VLOOKUP($D25,LouverData,19,FALSE))>=VLOOKUP($D25,LouverData,20,FALSE),$AB25+VLOOKUP($D25,LouverData,20,FALSE),$AB25+$AD25*VLOOKUP($D25,LouverData,19,FALSE)))) -> 0 | AH25: 0 | AI25: 0 | AJ25: 0 | AK25: =IF(OR($D25="",$G25=0,$H25=0),0,($M25*$Q25*VLOOKUP($D25,LouverData,18,FALSE))+($M25*$S25*VLOOKUP("OHL-102",LouverData,18,FALSE))) -> 0 | AL25: =IF(OR($D25="",$G25=0,$H25=0),0,($O25*$R25*VLOOKUP($D25,LouverData,18,FALSE))) -> 0 | AM25: =IF(OR($D25="",$G25=0,$H25=0),0,(($O25*$T25*VLOOKUP($D25,LouverData,21,FALSE))+($P25*$V25*VLOOKUP("OHL-45",LouverData,21,FALSE))+$W25*VLOOKUP($D25,LouverData,24,FALSE)+$X25*VLOOKUP("OHL-102",LouverData,24,FALSE))) -> 0 | AN25: =IF(OR($D25="",$G25=0,$H25=0),0,($M25*$U25*VLOOKUP($D25,LouverData,21,FALSE))) -> 0 | AO25: =IF(OR($D25="",$G25=0,$H25=0),0,IF(VLOOKUP($D25,LouverData,19,FALSE)=0,0,($M25*(VLOOKUP($D25,LouverData,15,FALSE)+VLOOKUP($D25,LouverData,16,FALSE))+2*$L25*VLOOKUP($D25,LouverData,17,FALSE)))) -> 0 | AP25: =IF(OR($D25="",$G25=0,$H25=0),0,IF($D25="OHL-DR SINGLE",2*($L25*VLOOKUP($D25,LouverData,15,FALSE) + $M25*VLOOKUP($D25,LouverData,17,FALSE))+2*($O25*VLOOKUP($D25,LouverData,16,FALSE) + ($M25-VLOOKUP($D25,LouverData,14,FALSE))*VLOOKUP($D25,LouverData,15,FALSE)),0)) -> 0 | AQ25: =IF(OR($D25="",$G25=0,$H25=0),0,IF($D25="OHL-DR DOUBLE",2*($L25*VLOOKUP($D25,LouverData,15,FALSE) + $M25*VLOOKUP($D25,LouverData,17,FALSE))+4*($O25*VLOOKUP($D25,LouverData,16,FALSE) + ($M25-2*VLOOKUP($D25,LouverData,14,FALSE))*VLOOKUP($D25,LouverData,15,FALSE)),0)) -> 0 | AR25: =IF(OR($D25="",$G25=0,$H25=0),0,(($M25*$O25*VLOOKUP($D25,LouverData,25,FALSE))/1000000)) -> 0 | AS25: =IF(OR($D25="",$G25=0,$H25=0),0,(VLOOKUP($D25,LouverData,26,FALSE))) -> 0 | AT25: =IF(OR($D25="",$G25=0,$H25=0),"",IF(VLOOKUP($D25,LouverData,20,FALSE)=0,"N/A",$AI25/1000*$AJ25/1000)) ->  | AU25: =IF(OR($D25="",$G25=0,$H25=0),"",IF(VLOOKUP($D25,LouverData,20,FALSE)=0,"N/A",($AI25*$AJ25)/($G25*$H25))) ->  | AV25: =IF(OR($D25="",$F25="",$G25=0,$H25=0),"",IF(VLOOKUP($D25,LouverData,20,FALSE)=0,"N/A",$F25/($G25*$H25/1000000))) ->  | AW25: =IF(OR($D25="",$F25="",$G25=0,$H25=0),"",IF(VLOOKUP($D25,LouverData,20,FALSE)=0,"N/A",$F25/($AI25*$AJ25/1000000))) ->  | AX25: =IF(OR($D25="",$F25="",$G25=0,$H25=0,$I25=0),"",IF(VLOOKUP($D25,LouverData,27,FALSE)=0,"N/A",IF($I25="E",$AW25^2*(VLOOKUP($D25,LouverData,27,FALSE))+$AW25*(VLOOKUP($D25,LouverData,28,FALSE))+(VLOOKUP($D25,LouverData,29,FALSE)),$AW25^2*(VLOOKUP($D25,LouverData,30,FALSE))+$AW25*(VLOOKUP($D25,LouverData,31,FALSE))+(VLOOKUP($D25,LouverData,32,FALSE))))) ->  | AY25: =IF(OR($D25="",$F25="",$G25=0,$H25=0,$I25=0),"",IF(VLOOKUP($D25,LouverData,27,FALSE)=0,"N/A",$AV25*(SQRT(1.19/(2*$AX25))))) ->  | BA25: =IF($D25="","",VLOOKUP($D25,LouverData,6,FALSE)) ->  | BB25: =IF($D25="","",VLOOKUP($D25,LouverData,10,FALSE)) ->  | BC25: =IF($D25="","",VLOOKUP($D25,LouverData,33,FALSE)) ->  | BD25: =IF($D25="","",VLOOKUP($D25,LouverData,34,FALSE)) ->  | BE25: =IF($D25="","",VLOOKUP($D25,LouverData,35,FALSE)) ->  | BF25: =IF($D25="","",VLOOKUP($D25,LouverData,36,FALSE)) ->  | BG25: =IF($D25="","",VLOOKUP($D25,LouverData,37,FALSE)) ->  | BH25: =IF($D25="","",VLOOKUP($D25,LouverData,38,FALSE)) ->  | BI25: =IF($D25="","",VLOOKUP($D25,LouverData,39,FALSE)) ->  | BJ25: =IF($D25="","",VLOOKUP($D25,LouverData,40,FALSE)) ->  | BK25: =IF($D25="","",VLOOKUP($D25,LouverData,41,FALSE)) ->  | BL25: =IF($D25="","",VLOOKUP($D25,LouverData,42,FALSE)) ->  | BM25: =IF($D25="","",VLOOKUP($D25,LouverData,43,FALSE)) ->  | BN25: =IF($D25="","",VLOOKUP($D25,LouverData,44,FALSE)) ->  | BO25: =IF($D25="","",VLOOKUP($D25,LouverData,45,FALSE)) ->  | BP25: =IF($D25="","",VLOOKUP($D25,LouverData,46,FALSE)) -> 
AW27: *The CDv value assumes an air density of 1.19 kg/m3.
B28: Holyoake Louvers have been tested and classified in accordance with: | AW28: **Louver door weight does not include the internal louver.
AW29: ***OHL-125 and OHCL-125 have been tested to AMCA 500-L-12.
B30: AS/NZS 4740:2000
B31: Natural Ventilators - Classification and Performance
B33: BS.EN 13030:2001
B34: Ventilation for Buildings. Terminal Performance testing of louvers subjected to simulated rain.
B36: AMCA 500-L-12
B37: Laboratory Methods of Testing Louvers for Rating

Sheet Data
A1: Type | B1: Minimum Width | C1: Minimum Height | D1: Maximum Width | E1: Maximum Height | F1: Wind Load | G1: Efficiency Class A | H1: Efficiency Class B | I1: Efficiency Class C | J1: Base Class | K1: Water Penetration | L1: Width Deduction | M1: Height Deduction | N1: Frame Spacing | O1: Top Frame Weight | P1: Bottom Frame Weight | Q1: Side Frame Weight | R1: Blade Weight | S1: Blade Spacing | T1: Slot Spacing | U1: Mullion Weight | V1: Mullion Spacing | W1: Mullion Width | X1: Mullion Clip Weight | Y1: Mesh Weight | Z1: Supplementary Weight | AA1: x^2 | AB1: x | AC1: +c | AD1: x^2 | AE1: x | AF1: +c | AG1: IL 125 | AH1: IL 250 | AI1: IL 500 | AJ1: IL 1k | AK1: IL 2k | AL1: IL 4k | AM1: IL 8k | AN1: TL 125 | AO1: TL 250 | AP1: TL 500 | AQ1: TL 1k | AR1: TL 2k | AS1: TL 4k | AT1: TL 8k
A2: OHL-D | B2: 300 | C2: 300 | F2: Level 1 | H2: 0.5 | I2: 7.5 | J2: Class B | K2: N/A | L2: 50 | M2: =L2+93 -> 143 | N2: 0 | O2: 0.001299 | P2: 0.001299 | Q2: =0.001299+0.000808+0.000328 -> 0.002435 | R2: 0.00067 | S2: 76.2 | T2: 47 | U2: 0.000726 | V2: 1000 | W2: 40 | X2: =0.001209*40 -> 0.04836 | Y2: 0.53 | Z2: 0 | AA2: =1/0.9104977079 -> 1.098300404 | AB2: 0 | AC2: 0 | AD2: =1/0.7427843551 -> 1.34628576 | AE2: 0 | AF2: 0 | AG2: - | AH2: - | AI2: - | AJ2: - | AK2: - | AL2: - | AM2: - | AN2: - | AO2: - | AP2: - | AQ2: - | AR2: - | AS2: - | AT2: -
A3: OHL-102 | B3: 300 | C3: 300 | F3: Level 1 | I3: 6.5 | J3: Class C | K3: N/A | L3: 50 | M3: =L3+135 -> 185 | N3: 0 | O3: 0.001299 | P3: 0.001299 | Q3: 0.001299 | R3: 0.001172 | S3: 102 | T3: 57 | U3: 0.000726 | V3: 1000 | W3: 40 | X3: =0.001439*40 -> 0.05756 | Y3: 0.53 | Z3: 0 | AA3: =1/0.9104977079 -> 1.098300404 | AB3: 0 | AC3: 0 | AD3: 1.34628576 | AE3: 0 | AF3: 0 | AG3: - | AH3: - | AI3: - | AJ3: - | AK3: - | AL3: - | AM3: - | AN3: - | AO3: - | AP3: - | AQ3: - | AR3: - | AS3: - | AT3: -
A4: OHL-124 | B4: 300 | C4: 300 | F4: Level 1 | H4: 0.5 | I4: 7.5 | J4: Class B | K4: N/A | L4: 50 | M4: =L4+87 -> 137 | N4: 0 | O4: 0.001299 | P4: 0.001299 | Q4: 0.001299 | R4: 0.00091 | S4: 76.2 | T4: 48 | U4: 0.000726 | V4: 1000 | W4: 40 | X4: =0.001209*40 -> 0.04836 | Y4: 0.53 | Z4: 0 | AA4: =1/0.9104977079 -> 1.098300404 | AB4: 0 | AC4: 0 | AD4: 1.34628576 | AE4: 0 | AF4: 0 | AG4: - | AH4: - | AI4: - | AJ4: - | AK4: - | AL4: - | AM4: - | AN4: - | AO4: - | AP4: - | AQ4: - | AR4: - | AS4: - | AT4: -
A5: OHL-125 | B5: 300 | C5: 280 | D5: 5800 | E5: 5800 | F5: N/A | J5: 4.7m/s*** | K5: 4.7m/s | L5: 50 | M5: =L5+127 -> 177 | N5: 0 | O5: 0.001974 | P5: 0.001974 | Q5: 0.001974 | R5: 0.001365 | S5: 102 | T5: 64 | U5: 0.000726 | V5: 1000 | W5: 40 | X5: =0.001209*40 -> 0.04836 | Y5: 1 | Z5: 0 | AA5: 1.5545 | AB5: 2.4314 | AC5: 0 | AD5: 1.8542 | AE5: 2.0801 | AF5: 0 | AG5: - | AH5: - | AI5: - | AJ5: - | AK5: - | AL5: - | AM5: - | AN5: - | AO5: - | AP5: - | AQ5: - | AR5: - | AS5: - | AT5: -
A6: OHL-100WT | B6: 300 | C6: 300 | F6: Level 1 | G6: 7.5 | J6: Class A | K6: N/A | L6: =M6+70 -> 120 | M6: 50 | N6: 0 | O6: =0.001299+0.00139 -> 0.002689 | P6: =0.001299+0.00139 -> 0.002689 | Q6: =0.001299+0.00139 -> 0.002689 | R6: 0.000799 | S6: 64 | T6: 27 | U6: 0.000726 | V6: 1000 | W6: 40 | X6: =0.000614*40 -> 0.02456 | Y6: 0.53 | Z6: 0 | AA6: =1/0.9104977079 -> 1.098300404 | AB6: 0 | AC6: 0 | AD6: =1/0.7427843551 -> 1.34628576 | AE6: 0 | AF6: 0 | AG6: - | AH6: - | AI6: - | AJ6: - | AK6: - | AL6: - | AM6: - | AN6: - | AO6: - | AP6: - | AQ6: - | AR6: - | AS6: - | AT6: -
A7: OHL-KD100 | B7: 300 | C7: 300 | F7: Level 1 | H7: 0.5 | I7: 7 | J7: Class B | K7: N/A | L7: 50 | M7: =L7+133 -> 183 | N7: 0 | O7: 0.001299 | P7: 0.001299 | Q7: 0.001299 | R7: 0.001023 | S7: 102 | T7: 57 | U7: 0.000726 | V7: 1000 | W7: 40 | X7: =0.001439*40 -> 0.05756 | Y7: 0.53 | Z7: 0 | AA7: =1/0.9104977079 -> 1.098300404 | AB7: 0 | AC7: 0 | AD7: =1/0.7427843551 -> 1.34628576 | AE7: 0 | AF7: 0 | AG7: - | AH7: - | AI7: - | AJ7: - | AK7: - | AL7: - | AM7: - | AN7: - | AO7: - | AP7: - | AQ7: - | AR7: - | AS7: - | AT7: -
A8: OHL-DR SINGLE | B8: 300 | C8: 300 | F8: N/A | J8: N/A | K8: N/A | L8: 89 | M8: 60 | N8: 190 | O8: 0.002356 | P8: 0.001826 | Q8: =0.001512+0.000792 -> 0.002304 | R8: 0 | S8: 0 | T8: 0 | U8: 0 | V8: 0 | W8: 0 | X8: 0 | Y8: 0 | Z8: 5.47 | AA8: 0 | AB8: 0 | AC8: 0 | AD8: 0 | AE8: 0 | AF8: 0 | AG8: - | AH8: - | AI8: - | AJ8: - | AK8: - | AL8: - | AM8: - | AN8: - | AO8: - | AP8: - | AQ8: - | AR8: - | AS8: - | AT8: -
A9: OHL-DR DOUBLE | B9: 300 | C9: 300 | F9: N/A | J9: N/A | K9: N/A | L9: 89 | M9: 60 | N9: 190 | O9: 0.002356 | P9: 0.001826 | Q9: =0.001512+0.000281 -> 0.001793 | R9: 0 | S9: 0 | T9: 0 | U9: 0 | V9: 0 | W9: 0 | X9: 0 | Y9: 0 | Z9: 10.49 | AA9: 0 | AB9: 0 | AC9: 0 | AD9: 0 | AE9: 0 | AF9: 0 | AG9: - | AH9: - | AI9: - | AJ9: - | AK9: - | AL9: - | AM9: - | AN9: - | AO9: - | AP9: - | AQ9: - | AR9: - | AS9: - | AT9: -
A10: OVL-99 | B10: 300 | C10: 300 | F10: Level 1 | H10: 0.5 | I10: 5 | J10: Class B | K10: N/A | L10: =M10+70 -> 120 | M10: 50 | N10: 0 | O10: 0.001299 | P10: 0.001299 | Q10: 0.001299 | R10: 0.000799 | S10: 64 | T10: 27 | U10: 0.000726 | V10: 1000 | W10: 40 | X10: =0.000614*40 -> 0.02456 | Y10: 0.53 | Z10: 0 | AA10: =1/0.9104977079 -> 1.098300404 | AB10: 0 | AC10: 0 | AD10: =1/0.7427843551 -> 1.34628576 | AE10: 0 | AF10: 0 | AG10: - | AH10: - | AI10: - | AJ10: - | AK10: - | AL10: - | AM10: - | AN10: - | AO10: - | AP10: - | AQ10: - | AR10: - | AS10: - | AT10: -
A11: OHL-34 | B11: 200 | C11: 200 | F11: Level 1 | H11: 5.5 | I11: 7.5 | J11: Class B | K11: N/A | L11: 20 | M11: =L11+57 -> 77 | N11: 0 | O11: 0.000294 | P11: 0.000294 | Q11: 0.000294 | R11: 0.000356 | S11: 38 | T11: 10 | U11: 0.000328 | V11: 600 | W11: 40 | X11: 0 | Y11: 0.53 | Z11: 0 | AA11: =1/0.9104977079 -> 1.098300404 | AB11: 0 | AC11: 0 | AD11: 1.34628576 | AE11: 0 | AF11: 0 | AG11: - | AH11: - | AI11: - | AJ11: - | AK11: - | AL11: - | AM11: - | AN11: - | AO11: - | AP11: - | AQ11: - | AR11: - | AS11: - | AT11: -
A12: OHL-45 | B12: 200 | C12: 200 | F12: Level 1 | I12: 7.5 | J12: Class C | K12: N/A | L12: 20 | M12: =L12+62 -> 82 | N12: 0 | O12: 0.000369 | P12: 0.000369 | Q12: 0.000369 | R12: 0.000424 | S12: 50 | T12: 25 | U12: 0.000328 | V12: 600 | W12: 40 | X12: =0.000399*40 -> 0.01596 | Y12: 0.53 | Z12: 0 | AA12: =1/0.9104977079 -> 1.098300404 | AB12: 0 | AC12: 0 | AD12: 1.34628576 | AE12: 0 | AF12: 0 | AG12: - | AH12: - | AI12: - | AJ12: - | AK12: - | AL12: - | AM12: - | AN12: - | AO12: - | AP12: - | AQ12: - | AR12: - | AS12: - | AT12: -
A13: OHL-LAOGS | F13: N/A | J13: N/A | K13: N/A | L13: 4 | M13: =L13+43 -> 47 | N13: 0 | O13: 0.001021 | P13: 0.001021 | Q13: 0.001021 | R13: 0.000262 | S13: 37 | T13: 16 | U13: 0.000328 | V13: 600 | W13: 40 | X13: 0 | Y13: 0.53 | Z13: 0 | AA13: =1/0.9104977079 -> 1.098300404 | AB13: 0 | AC13: 0 | AD13: 1.34628576 | AE13: 0 | AF13: 0 | AG13: - | AH13: - | AI13: - | AJ13: - | AK13: - | AL13: - | AM13: - | AN13: - | AO13: - | AP13: - | AQ13: - | AR13: - | AS13: - | AT13: -
A14: OHL-DRC | B14: 300 | C14: 300 | F14: Level 1 | H14: 7 | I14: 7.5 | J14: Class B | K14: N/A | L14: 57 | M14: 79 | N14: 0 | O14: =0.001428+0.000792 -> 0.00222 | P14: =0.001423+0.000792 -> 0.002215 | Q14: =0.001793+0.000284+0.000792 -> 0.002869 | R14: 0.00128 | S14: 102 | T14: 58 | U14: 0 | V14: 0 | W14: 0 | X14: 0 | Y14: 2.48 | Z14: 1.1 | AA14: =1/0.9104977079 -> 1.098300404 | AB14: 0 | AC14: 0 | AD14: 1.34628576 | AE14: 0 | AF14: 0 | AG14: - | AH14: - | AI14: - | AJ14: - | AK14: - | AL14: - | AM14: - | AN14: - | AO14: - | AP14: - | AQ14: - | AR14: - | AS14: - | AT14: -
A15: OHCL-125 | B15: 300 | C15: 280 | F15: N/A | J15: 4.7m/s*** | K15: 4.7m/s | L15: 50 | M15: =L15+127 -> 177 | N15: 0 | O15: 0.001974 | P15: 0.001974 | Q15: 0.001974 | R15: =0.001365+0.000445 -> 0.00181 | S15: 102 | T15: 62 | U15: 0.000726 | V15: 1000 | W15: 40 | X15: =0.001209*40 -> 0.04836 | Y15: 1 | Z15: 2.2 | AA15: 1.5545 | AB15: 2.4314 | AC15: 0 | AD15: 1.8542 | AE15: 2.0801 | AF15: 0 | AG15: - | AH15: - | AI15: - | AJ15: - | AK15: - | AL15: - | AM15: - | AN15: - | AO15: - | AP15: - | AQ15: - | AR15: - | AS15: - | AT15: -
A16: AHL-150 | B16: 120 | C16: 370 | D16: 3000 | E16: 3000 | F16: N/A | J16: N/A | K16: N/A | L16: 70 | M16: =L16+219 -> 289 | N16: 0 | O16: =0.001428+0.00068+0.00017+0.000792 -> 0.00307 | P16: =0.001428+0.00068+0.00017+0.000792 -> 0.00307 | Q16: 0.00307 | R16: =0.002984+0.000397+0.00049 -> 0.003871 | S16: 152 | T16: 50 | U16: 0 | V16: 0 | W16: 0 | X16: 0 | Y16: 0 | Z16: 0 | AA16: 0.5753 | AB16: 0.002 | AC16: 0.0358 | AD16: 0.5753 | AE16: 0.002 | AF16: 0.0358 | AG16: 0.9 | AH16: 0.4 | AI16: 1.2 | AJ16: 2.3 | AK16: 4.4 | AL16: 2.2 | AM16: 1.9 | AN16: 11.6 | AO16: 11.6 | AP16: 13.1 | AQ16: 15.3 | AR16: 19.8 | AS16: 12.9 | AT16: 12
A17: AHL-300 | B17: 120 | C17: 370 | D17: 3000 | E17: 3000 | F17: N/A | J17: N/A | K17: N/A | L17: 70 | M17: =L17+219 -> 289 | N17: 0 | O17: =O16+O20 -> 0.004498 | P17: =P16+P20 -> 0.004498 | Q17: =Q16+Q20 -> 0.004498 | R17: =R16+R20 -> 0.006759 | S17: 152 | T17: 50 | U17: 0 | V17: 0 | W17: 0 | X17: 0 | Y17: 0 | Z17: 0 | AA17: 0.5753 | AB17: 0.002 | AC17: 0.0358 | AD17: 0.5753 | AE17: 0.002 | AF17: 0.0358 | AG17: 1.5 | AH17: 2.4 | AI17: 5.1 | AJ17: 7.6 | AK17: 11.2 | AL17: 9.6 | AM17: 9.6 | AN17: 12.3 | AO17: 13.6 | AP17: 16.9 | AQ17: 20.4 | AR17: 26.5 | AS17: 20.4 | AT17: 19.7
A18: AHL-450 | B18: 120 | C18: 370 | D18: 3000 | E18: 3000 | F18: N/A | J18: N/A | K18: N/A | L18: 70 | M18: 289 | N18: 0 | O18: =O17+O20 -> 0.005926 | P18: =P17+P20 -> 0.005926 | Q18: =Q17+Q20 -> 0.005926 | R18: =R17+R20 -> 0.009647 | S18: 152 | T18: 50 | U18: 0 | V18: 0 | W18: 0 | X18: 0 | Y18: 0 | Z18: 0 | AA18: 0.5753 | AB18: 0.002 | AC18: 0.0358 | AD18: 0.5753 | AE18: 0.002 | AF18: 0.0358 | AG18: 3.7 | AH18: 6.2 | AI18: 8.3 | AJ18: 12.1 | AK18: 16.4 | AL18: 15.5 | AM18: 15.7 | AN18: 10.5 | AO18: 12.7 | AP18: 16.5 | AQ18: 21.4 | AR18: 30.8 | AS18: 28.6 | AT18: 29.4
A19: AHL-600 | B19: 120 | C19: 370 | D19: 3000 | E19: 3000 | F19: N/A | J19: N/A | K19: N/A | L19: 70 | M19: 289 | N19: 0 | O19: =O18+O20 -> 0.007354 | P19: =P18+P20 -> 0.007354 | Q19: =Q18+Q20 -> 0.007354 | R19: =R18+R20 -> 0.012535 | S19: 152 | T19: 50 | U19: 0 | V19: 0 | W19: 0 | X19: 0 | Y19: 0 | Z19: 0 | AA19: 0.5753 | AB19: 0.002 | AC19: 0.0358 | AD19: 0.5753 | AE19: 0.002 | AF19: 0.0358 | AG19: 5.9 | AH19: 7.9 | AI19: 11.1 | AJ19: 16.1 | AK19: 22 | AL19: 20.8 | AM19: 21.4 | AN19: 12.8 | AO19: 14.5 | AP19: 19.3 | AQ19: 25.4 | AR19: 36.4 | AS19: 33.9 | AT19: 35.1
A20: ST-150 | B20: 120 | C20: 220 | D20: 3000 | E20: 3000 | F20: N/A | J20: N/A | K20: N/A | L20: 70 | M20: =L20+80 -> 150 | N20: 0 | O20: 0.001428 | P20: 0.001428 | Q20: 0.001428 | R20: =0.002348+0.00054 -> 0.002888 | S20: 152 | T20: 72 | U20: 0 | V20: 0 | W20: 0 | X20: 0 | Y20: 0 | Z20: 0 | AA20: 0 | AB20: 0 | AC20: 0 | AD20: 0 | AE20: 0 | AF20: 0 | AG20: 1 | AH20: 1.1 | AI20: 0 | AJ20: 0 | AK20: 0 | AL20: 0 | AM20: 0 | AN20: 7.8 | AO20: 8.4 | AP20: 8.5 | AQ20: 8.4 | AR20: 10.6 | AS20: 10.2 | AT20: 10.3
A21: ST-300 | B21: 120 | C21: 220 | D21: 3000 | E21: 3000 | F21: N/A | J21: N/A | K21: N/A | L21: 70 | M21: =L21+80 -> 150 | N21: 0 | O21: =O20*2 -> 0.002856 | P21: =P20*2 -> 0.002856 | Q21: =Q20*2 -> 0.002856 | R21: =R20*2 -> 0.005776 | S21: 152 | T21: 72 | U21: 0 | V21: 0 | W21: 0 | X21: 0 | Y21: 0 | Z21: 0 | AA21: 0 | AB21: 0 | AC21: 0 | AD21: 0 | AE21: 0 | AF21: 0 | AG21: 0.7 | AH21: 1.7 | AI21: 2 | AJ21: 1.5 | AK21: 0.6 | AL21: 5 | AM21: 4.3 | AN21: 7.6 | AO21: 8.9 | AP21: 10.6 | AQ21: 12 | AR21: 16.2 | AS21: 17.6 | AT21: 17.1
A22: ST-450 | B22: 120 | C22: 220 | D22: 3000 | E22: 3000 | F22: N/A | J22: N/A | K22: N/A | L22: 70 | M22: 150 | N22: 0 | O22: =O20*3 -> 0.004284 | P22: =P20*3 -> 0.004284 | Q22: =Q20*3 -> 0.004284 | R22: =R20*3 -> 0.008664 | S22: 152 | T22: 72 | U22: 0 | V22: 0 | W22: 0 | X22: 0 | Y22: 0 | Z22: 0 | AA22: 0 | AB22: 0 | AC22: 0 | AD22: 0 | AE22: 0 | AF22: 0 | AG22: 4.2 | AH22: 10.9 | AI22: 9.8 | AJ22: 9.5 | AK22: 10.5 | AL22: 12.4 | AM22: 12.1 | AN22: 11.4 | AO22: 17.9 | AP22: 18.4 | AQ22: 19.8 | AR22: 25.7 | AS22: 25 | AT22: 24.9
A24: OHL-ST2 | L24: 0 | M24: 0 | O24: 0 | P24: 0 | Q24: 0 | T24: N/A | AG24: 1 | AH24: 3 | AI24: 5 | AJ24: 6 | AK24: 13 | AL24: 8 | AM24: 11 | AN24: - | AO24: - | AP24: - | AQ24: - | AR24: - | AS24: - | AT24: -
A25: OHL-ST4 | L25: 0 | M25: 0 | O25: 0 | P25: 0 | Q25: 0 | T25: N/A | AG25: 1 | AH25: 6 | AI25: 9 | AJ25: 12 | AK25: 19 | AL25: 18 | AM25: 15 | AN25: - | AO25: - | AP25: - | AQ25: - | AR25: - | AS25: - | AT25: -
A26: OVL-148
A27: OHCL-102 | B27: 300 | C27: 300 | F27: Level 1 | I27: 6.5 | J27: Class C | K27: N/A | L27: 57 | M27: 193 | N27: N/A | O27: 0.001739 | P27: N/A | Q27: N/A | R27: =0.001172+0.000544 -> 0.001716 | S27: 102 | T27: 51 | V27: 900 | W27: 25 | AA27: =1/0.9104977079 -> 1.098300404 | AB27: 0 | AC27: 0 | AD27: =1/0.7427843551 -> 1.34628576 | AE27: 0 | AF27: 0 | AG27: - | AH27: - | AI27: - | AJ27: - | AK27: - | AL27: - | AM27: - | AN27: - | AO27: - | AP27: - | AQ27: - | AR27: - | AS27: - | AT27: -
A28: OHCL-124 | B28: 300 | C28: 300 | F28: Level 1 | H28: 0.5 | I28: 7.5 | J28: Class B | K28: N/A | L28: 60 | M28: 160 | N28: N/A | O28: 0.001739 | P28: N/A | Q28: N/A | R28: =0.00091+0.000435 -> 0.001345 | S28: 76.2 | T28: 37 | V28: 900 | W28: 40 | AA28: 1.098300404 | AB28: 0 | AC28: 0 | AD28: 1.34628576 | AE28: 0 | AF28: 0 | AG28: - | AH28: - | AI28: - | AJ28: - | AK28: - | AL28: - | AM28: - | AN28: - | AO28: - | AP28: - | AQ28: - | AR28: - | AS28: - | AT28: -
A29: Insect Mesh | O29: 3.4e-07
A30: 1 | B30: 2 | C30: 3 | D30: 4 | E30: 5 | F30: 6 | G30: 7 | H30: 8 | I30: 9 | J30: 10 | K30: 11 | L30: 12 | M30: 13 | N30: 14 | O30: 15 | P30: 16 | Q30: 17 | R30: 18 | S30: 19 | T30: 20 | U30: 21 | V30: 22 | W30: 23 | X30: 24 | Y30: 25 | Z30: 26 | AA30: 27 | AB30: 28 | AC30: 29 | AD30: 30 | AE30: 31 | AF30: 32 | AG30: 33 | AH30: 34 | AI30: 35 | AJ30: 36 | AK30: 37 | AL30: 38 | AM30: 39 | AN30: 40 | AO30: 41 | AP30: 42 | AQ30: 43 | AR30: 44 | AS30: 45 | AT30: 46
L31: OHL-DR has a different construction to the louvre range, the calculation data is therefore slightly different
A33: Nominal Size | L33: 6 | M33: 6 | AA33: Exhaust | AD33: Intake
AR50: mullion weight
AQ53: 102 | AR53: 900
AQ54: 124 | AR54: 900
AQ55: dra | AR55: 900
AQ56: 45
AQ57: rlw
